{"text_format":"1","workbook":"xlsx","n_sheets":5,"sheets":["Control","rules","|","schedule","hours"],"not_rendered":{"charts":0,"images":3,"macros":1,"external_links":0,"defined_names":25,"comments":0,"pivot_tables":0},"unopened":[],"bounds":{"document_bytes":16777216,"sheet_cells":100000,"rows_first":2000,"rows_last":500,"rows_between":2000,"halvings":0,"cell_chars":16384,"cell_head_chars":4096},"cells_cut":0,"cells_raw":0,"read":"whole","date_system":"1900"}

{"sheet":"Control","index":0,"n_rows":34,"n_cols":21,"rows_kept":34,"cut":false,"hidden":false,"merged":[[25,5,25,10],[0,4,0,10],[9,5,9,10],[10,5,10,10],[11,5,11,10],[12,5,12,10],[22,5,22,10],[23,5,23,10],[24,5,24,10],[26,5,26,10],[6,2,16,2],[13,5,13,10],[14,5,14,10],[15,5,15,10],[16,5,16,10],[17,5,17,10],[18,5,18,10],[19,5,19,10],[20,5,20,10],[21,5,21,10]]}
[null,"Date",{"$f":"NOW()","v":"2020-09-19T21:10:45.910"},null,{"$f":"TEXT(E3,\"MMMM\")","v":"September"}]
[null,"io","in",null,{"$f":"TEXT(E3,\"ddd\")","v":"Tue"},"Wed","Thu","Fri","Sat","Sun","Mon",null,"Date","wave","#","glyph","To-Do","Personal","Professional","Other"]
[null,"name","Caleb",null,{"$f":"M3","v":"2020-09-01"},{"$f":"E3+1","v":"2020-09-02"},"2020-09-03","2020-09-04","2020-09-05","2020-09-06","2020-09-07",null,"2020-09-01",{"$f":"IFERROR(INDEX(tzolkinGlyphs,MATCH((ROUND(IF(((ROUND(1+(20*(((M3-tzolkinStartDate)/20)-(ROUNDDOWN((M3-tzolkinStartDate)/20,0)))),0))-(IF(((((ROUNDDOWN(M3-tzolkinStartDate,0)+1)/13)-ROUNDDOWN((ROUNDDOWN(M3-tzolkinStartDate,0)+1)/13,0))*13)>0,((((ROUNDDOWN(M3-tzolkinStartDate,0)+1)/13)-ROUNDDOWN((ROUNDDOWN(M3-tzolkinStartDate,0)+1)/13,0))*13),13)))<0,20+((ROUND(1+(20*(((M3-tzolkinStartDate)/20)-(ROUNDDOWN((M3-tzolkinStartDate)/20,0)))),0))-(IF(((((ROUNDDOWN(M3-tzolkinStartDate,0)+1)/13)-ROUNDDOWN((ROUNDDOWN(M3-tzolkinStartDate,0)+1)/13,0))*13)>0,((((ROUNDDOWN(M3-tzolkinStartDate,0)+1)/13)-ROUNDDOWN((ROUNDDOWN(M3-tzolkinStartDate,0)+1)/13,0))*13),13))),((ROUND(1+(20*(((M3-tzolkinStartDate)/20)-(ROUNDDOWN((M3-tzolkinStartDate)/20,0)))),0))-(IF(((((ROUNDDOWN(M3-tzolkinStartDate,0)+1)/13)-ROUNDDOWN((ROUNDDOWN(M3-tzolkinStartDate,0)+1)/13,0))*13)>0,((((ROUNDDOWN(M3-tzolkinStartDate,0)+1)/13)-ROUNDDOWN((ROUNDDOWN(M3-tzolkinStartDate,0)+1)/13,0))*13),13)))),0)+1),glyphPosition,0)),\"Manik\")","v":"Chicchan"},{"$f":"(IF(((((ROUNDDOWN(M3-tzolkinStartDate,0)+1)/13)-ROUNDDOWN((ROUNDDOWN(M3-tzolkinStartDate,0)+1)/13,0))*13)>0,((((ROUNDDOWN(M3-tzolkinStartDate,0)+1)/13)-ROUNDDOWN((ROUNDDOWN(M3-tzolkinStartDate,0)+1)/13,0))*13),13))","v":7.0000000000000213},{"$f":"INDEX(tzolkinGlyphs,MATCH(ROUND((((((M3-tzolkinStartDate)/20)-(ROUNDDOWN((M3-tzolkinStartDate)/20,0)))*20)+1),0),glyphPosition,0))","v":"Chuen"},null,{"$f":"INDEX(schedule!$C:$C,MATCH(1,($M3=schedule!$A:$A)*(R$2=schedule!$B:$B),0))","v":{"$error":"#N/A"}},{"$f":"INDEX(schedule!$C:$C,MATCH(1,($M3=schedule!$A:$A)*(S$2=schedule!$B:$B),0))","v":{"$error":"#N/A"}},{"$f":"INDEX(schedule!$C:$C,MATCH(1,($M3=schedule!$A:$A)*(T$2=schedule!$B:$B),0))","v":{"$error":"#N/A"}}]
[null,"focus","Personal",null,{"$f":"E3+7","v":"2020-09-08"},"2020-09-09","2020-09-10","2020-09-11","2020-09-12","2020-09-13","2020-09-14",null,{"$f":"M3+1","v":"2020-09-02"},{"$f":"IFERROR(INDEX(tzolkinGlyphs,MATCH((ROUND(IF(((ROUND(1+(20*(((M4-tzolkinStartDate)/20)-(ROUNDDOWN((M4-tzolkinStartDate)/20,0)))),0))-(IF(((((ROUNDDOWN(M4-tzolkinStartDate,0)+1)/13)-ROUNDDOWN((ROUNDDOWN(M4-tzolkinStartDate,0)+1)/13,0))*13)>0,((((ROUNDDOWN(M4-tzolkinStartDate,0)+1)/13)-ROUNDDOWN((ROUNDDOWN(M4-tzolkinStartDate,0)+1)/13,0))*13),13)))<0,20+((ROUND(1+(20*(((M4-tzolkinStartDate)/20)-(ROUNDDOWN((M4-tzolkinStartDate)/20,0)))),0))-(IF(((((ROUNDDOWN(M4-tzolkinStartDate,0)+1)/13)-ROUNDDOWN((ROUNDDOWN(M4-tzolkinStartDate,0)+1)/13,0))*13)>0,((((ROUNDDOWN(M4-tzolkinStartDate,0)+1)/13)-ROUNDDOWN((ROUNDDOWN(M4-tzolkinStartDate,0)+1)/13,0))*13),13))),((ROUND(1+(20*(((M4-tzolkinStartDate)/20)-(ROUNDDOWN((M4-tzolkinStartDate)/20,0)))),0))-(IF(((((ROUNDDOWN(M4-tzolkinStartDate,0)+1)/13)-ROUNDDOWN((ROUNDDOWN(M4-tzolkinStartDate,0)+1)/13,0))*13)>0,((((ROUNDDOWN(M4-tzolkinStartDate,0)+1)/13)-ROUNDDOWN((ROUNDDOWN(M4-tzolkinStartDate,0)+1)/13,0))*13),13)))),0)+1),glyphPosition,0)),\"Manik\")","v":"Chicchan"},{"$f":"(IF(((((ROUNDDOWN(M4-tzolkinStartDate,0)+1)/13)-ROUNDDOWN((ROUNDDOWN(M4-tzolkinStartDate,0)+1)/13,0))*13)>0,((((ROUNDDOWN(M4-tzolkinStartDate,0)+1)/13)-ROUNDDOWN((ROUNDDOWN(M4-tzolkinStartDate,0)+1)/13,0))*13),13))","v":7.9999999999999716},{"$f":"INDEX(tzolkinGlyphs,MATCH(ROUND((((((M4-tzolkinStartDate)/20)-(ROUNDDOWN((M4-tzolkinStartDate)/20,0)))*20)+1),0),glyphPosition,0))","v":"Eb"},null,{"$f":"INDEX(schedule!$C:$C,MATCH(1,($M4=schedule!$A:$A)*(R$2=schedule!$B:$B),0))","v":{"$error":"#N/A"}},{"$f":"INDEX(schedule!$C:$C,MATCH(1,($M4=schedule!$A:$A)*(S$2=schedule!$B:$B),0))","v":{"$error":"#N/A"}},{"$f":"INDEX(schedule!$C:$C,MATCH(1,($M4=schedule!$A:$A)*(T$2=schedule!$B:$B),0))","v":{"$error":"#N/A"}}]
[null,"task","Study"," ",{"$f":"E4+7","v":"2020-09-15"},"2020-09-16","2020-09-17","2020-09-18","2020-09-19","2020-09-20","2020-09-21",null,"2020-09-03",{"$f":"IFERROR(INDEX(tzolkinGlyphs,MATCH((ROUND(IF(((ROUND(1+(20*(((M5-tzolkinStartDate)/20)-(ROUNDDOWN((M5-tzolkinStartDate)/20,0)))),0))-(IF(((((ROUNDDOWN(M5-tzolkinStartDate,0)+1)/13)-ROUNDDOWN((ROUNDDOWN(M5-tzolkinStartDate,0)+1)/13,0))*13)>0,((((ROUNDDOWN(M5-tzolkinStartDate,0)+1)/13)-ROUNDDOWN((ROUNDDOWN(M5-tzolkinStartDate,0)+1)/13,0))*13),13)))<0,20+((ROUND(1+(20*(((M5-tzolkinStartDate)/20)-(ROUNDDOWN((M5-tzolkinStartDate)/20,0)))),0))-(IF(((((ROUNDDOWN(M5-tzolkinStartDate,0)+1)/13)-ROUNDDOWN((ROUNDDOWN(M5-tzolkinStartDate,0)+1)/13,0))*13)>0,((((ROUNDDOWN(M5-tzolkinStartDate,0)+1)/13)-ROUNDDOWN((ROUNDDOWN(M5-tzolkinStartDate,0)+1)/13,0))*13),13))),((ROUND(1+(20*(((M5-tzolkinStartDate)/20)-(ROUNDDOWN((M5-tzolkinStartDate)/20,0)))),0))-(IF(((((ROUNDDOWN(M5-tzolkinStartDate,0)+1)/13)-ROUNDDOWN((ROUNDDOWN(M5-tzolkinStartDate,0)+1)/13,0))*13)>0,((((ROUNDDOWN(M5-tzolkinStartDate,0)+1)/13)-ROUNDDOWN((ROUNDDOWN(M5-tzolkinStartDate,0)+1)/13,0))*13),13)))),0)+1),glyphPosition,0)),\"Manik\")","v":"Chicchan"},{"$f":"(IF(((((ROUNDDOWN(M5-tzolkinStartDate,0)+1)/13)-ROUNDDOWN((ROUNDDOWN(M5-tzolkinStartDate,0)+1)/13,0))*13)>0,((((ROUNDDOWN(M5-tzolkinStartDate,0)+1)/13)-ROUNDDOWN((ROUNDDOWN(M5-tzolkinStartDate,0)+1)/13,0))*13),13))","v":9.0000000000000142},{"$f":"INDEX(tzolkinGlyphs,MATCH(ROUND((((((M5-tzolkinStartDate)/20)-(ROUNDDOWN((M5-tzolkinStartDate)/20,0)))*20)+1),0),glyphPosition,0))","v":"Ben"},null,{"$f":"INDEX(schedule!$C:$C,MATCH(1,($M5=schedule!$A:$A)*(R$2=schedule!$B:$B),0))","v":{"$error":"#N/A"}},{"$f":"INDEX(schedule!$C:$C,MATCH(1,($M5=schedule!$A:$A)*(S$2=schedule!$B:$B),0))","v":{"$error":"#N/A"}},{"$f":"INDEX(schedule!$C:$C,MATCH(1,($M5=schedule!$A:$A)*(T$2=schedule!$B:$B),0))","v":{"$error":"#N/A"}}]
[null,null,null," ",{"$f":"E5+7","v":"2020-09-22"},"2020-09-23","2020-09-24","2020-09-25","2020-09-26","2020-09-27","2020-09-28",null,"2020-09-04",{"$f":"IFERROR(INDEX(tzolkinGlyphs,MATCH((ROUND(IF(((ROUND(1+(20*(((M6-tzolkinStartDate)/20)-(ROUNDDOWN((M6-tzolkinStartDate)/20,0)))),0))-(IF(((((ROUNDDOWN(M6-tzolkinStartDate,0)+1)/13)-ROUNDDOWN((ROUNDDOWN(M6-tzolkinStartDate,0)+1)/13,0))*13)>0,((((ROUNDDOWN(M6-tzolkinStartDate,0)+1)/13)-ROUNDDOWN((ROUNDDOWN(M6-tzolkinStartDate,0)+1)/13,0))*13),13)))<0,20+((ROUND(1+(20*(((M6-tzolkinStartDate)/20)-(ROUNDDOWN((M6-tzolkinStartDate)/20,0)))),0))-(IF(((((ROUNDDOWN(M6-tzolkinStartDate,0)+1)/13)-ROUNDDOWN((ROUNDDOWN(M6-tzolkinStartDate,0)+1)/13,0))*13)>0,((((ROUNDDOWN(M6-tzolkinStartDate,0)+1)/13)-ROUNDDOWN((ROUNDDOWN(M6-tzolkinStartDate,0)+1)/13,0))*13),13))),((ROUND(1+(20*(((M6-tzolkinStartDate)/20)-(ROUNDDOWN((M6-tzolkinStartDate)/20,0)))),0))-(IF(((((ROUNDDOWN(M6-tzolkinStartDate,0)+1)/13)-ROUNDDOWN((ROUNDDOWN(M6-tzolkinStartDate,0)+1)/13,0))*13)>0,((((ROUNDDOWN(M6-tzolkinStartDate,0)+1)/13)-ROUNDDOWN((ROUNDDOWN(M6-tzolkinStartDate,0)+1)/13,0))*13),13)))),0)+1),glyphPosition,0)),\"Manik\")","v":"Chicchan"},{"$f":"(IF(((((ROUNDDOWN(M6-tzolkinStartDate,0)+1)/13)-ROUNDDOWN((ROUNDDOWN(M6-tzolkinStartDate,0)+1)/13,0))*13)>0,((((ROUNDDOWN(M6-tzolkinStartDate,0)+1)/13)-ROUNDDOWN((ROUNDDOWN(M6-tzolkinStartDate,0)+1)/13,0))*13),13))","v":9.9999999999999645},{"$f":"INDEX(tzolkinGlyphs,MATCH(ROUND((((((M6-tzolkinStartDate)/20)-(ROUNDDOWN((M6-tzolkinStartDate)/20,0)))*20)+1),0),glyphPosition,0))","v":"Ix"},null,{"$f":"INDEX(schedule!$C:$C,MATCH(1,($M6=schedule!$A:$A)*(R$2=schedule!$B:$B),0))","v":{"$error":"#N/A"}},{"$f":"INDEX(schedule!$C:$C,MATCH(1,($M6=schedule!$A:$A)*(S$2=schedule!$B:$B),0))","v":{"$error":"#N/A"}},{"$f":"INDEX(schedule!$C:$C,MATCH(1,($M6=schedule!$A:$A)*(T$2=schedule!$B:$B),0))","v":{"$error":"#N/A"}}]
[null,"notes","Today was a good day. Fill out your activity here and click the Punch button in the top left. These notes are recorded to the hours sheet."," ",{"$f":"E6+7","v":"2020-09-29"},"2020-09-30","2020-10-01","2020-10-02","2020-10-03","2020-10-04","2020-10-05",null,"2020-09-05",{"$f":"IFERROR(INDEX(tzolkinGlyphs,MATCH((ROUND(IF(((ROUND(1+(20*(((M7-tzolkinStartDate)/20)-(ROUNDDOWN((M7-tzolkinStartDate)/20,0)))),0))-(IF(((((ROUNDDOWN(M7-tzolkinStartDate,0)+1)/13)-ROUNDDOWN((ROUNDDOWN(M7-tzolkinStartDate,0)+1)/13,0))*13)>0,((((ROUNDDOWN(M7-tzolkinStartDate,0)+1)/13)-ROUNDDOWN((ROUNDDOWN(M7-tzolkinStartDate,0)+1)/13,0))*13),13)))<0,20+((ROUND(1+(20*(((M7-tzolkinStartDate)/20)-(ROUNDDOWN((M7-tzolkinStartDate)/20,0)))),0))-(IF(((((ROUNDDOWN(M7-tzolkinStartDate,0)+1)/13)-ROUNDDOWN((ROUNDDOWN(M7-tzolkinStartDate,0)+1)/13,0))*13)>0,((((ROUNDDOWN(M7-tzolkinStartDate,0)+1)/13)-ROUNDDOWN((ROUNDDOWN(M7-tzolkinStartDate,0)+1)/13,0))*13),13))),((ROUND(1+(20*(((M7-tzolkinStartDate)/20)-(ROUNDDOWN((M7-tzolkinStartDate)/20,0)))),0))-(IF(((((ROUNDDOWN(M7-tzolkinStartDate,0)+1)/13)-ROUNDDOWN((ROUNDDOWN(M7-tzolkinStartDate,0)+1)/13,0))*13)>0,((((ROUNDDOWN(M7-tzolkinStartDate,0)+1)/13)-ROUNDDOWN((ROUNDDOWN(M7-tzolkinStartDate,0)+1)/13,0))*13),13)))),0)+1),glyphPosition,0)),\"Manik\")","v":"Chicchan"},{"$f":"(IF(((((ROUNDDOWN(M7-tzolkinStartDate,0)+1)/13)-ROUNDDOWN((ROUNDDOWN(M7-tzolkinStartDate,0)+1)/13,0))*13)>0,((((ROUNDDOWN(M7-tzolkinStartDate,0)+1)/13)-ROUNDDOWN((ROUNDDOWN(M7-tzolkinStartDate,0)+1)/13,0))*13),13))","v":11.000000000000007},{"$f":"INDEX(tzolkinGlyphs,MATCH(ROUND((((((M7-tzolkinStartDate)/20)-(ROUNDDOWN((M7-tzolkinStartDate)/20,0)))*20)+1),0),glyphPosition,0))","v":"Men"},null,{"$f":"INDEX(schedule!$C:$C,MATCH(1,($M7=schedule!$A:$A)*(R$2=schedule!$B:$B),0))","v":{"$error":"#N/A"}},{"$f":"INDEX(schedule!$C:$C,MATCH(1,($M7=schedule!$A:$A)*(S$2=schedule!$B:$B),0))","v":{"$error":"#N/A"}},{"$f":"INDEX(schedule!$C:$C,MATCH(1,($M7=schedule!$A:$A)*(T$2=schedule!$B:$B),0))","v":{"$error":"#N/A"}}]
[null,null,null,null,null,null,null,null,null,null,null,null,"2020-09-06",{"$f":"IFERROR(INDEX(tzolkinGlyphs,MATCH((ROUND(IF(((ROUND(1+(20*(((M8-tzolkinStartDate)/20)-(ROUNDDOWN((M8-tzolkinStartDate)/20,0)))),0))-(IF(((((ROUNDDOWN(M8-tzolkinStartDate,0)+1)/13)-ROUNDDOWN((ROUNDDOWN(M8-tzolkinStartDate,0)+1)/13,0))*13)>0,((((ROUNDDOWN(M8-tzolkinStartDate,0)+1)/13)-ROUNDDOWN((ROUNDDOWN(M8-tzolkinStartDate,0)+1)/13,0))*13),13)))<0,20+((ROUND(1+(20*(((M8-tzolkinStartDate)/20)-(ROUNDDOWN((M8-tzolkinStartDate)/20,0)))),0))-(IF(((((ROUNDDOWN(M8-tzolkinStartDate,0)+1)/13)-ROUNDDOWN((ROUNDDOWN(M8-tzolkinStartDate,0)+1)/13,0))*13)>0,((((ROUNDDOWN(M8-tzolkinStartDate,0)+1)/13)-ROUNDDOWN((ROUNDDOWN(M8-tzolkinStartDate,0)+1)/13,0))*13),13))),((ROUND(1+(20*(((M8-tzolkinStartDate)/20)-(ROUNDDOWN((M8-tzolkinStartDate)/20,0)))),0))-(IF(((((ROUNDDOWN(M8-tzolkinStartDate,0)+1)/13)-ROUNDDOWN((ROUNDDOWN(M8-tzolkinStartDate,0)+1)/13,0))*13)>0,((((ROUNDDOWN(M8-tzolkinStartDate,0)+1)/13)-ROUNDDOWN((ROUNDDOWN(M8-tzolkinStartDate,0)+1)/13,0))*13),13)))),0)+1),glyphPosition,0)),\"Manik\")","v":"Chicchan"},{"$f":"(IF(((((ROUNDDOWN(M8-tzolkinStartDate,0)+1)/13)-ROUNDDOWN((ROUNDDOWN(M8-tzolkinStartDate,0)+1)/13,0))*13)>0,((((ROUNDDOWN(M8-tzolkinStartDate,0)+1)/13)-ROUNDDOWN((ROUNDDOWN(M8-tzolkinStartDate,0)+1)/13,0))*13),13))","v":11.999999999999957},{"$f":"INDEX(tzolkinGlyphs,MATCH(ROUND((((((M8-tzolkinStartDate)/20)-(ROUNDDOWN((M8-tzolkinStartDate)/20,0)))*20)+1),0),glyphPosition,0))","v":"Cib"},null,{"$f":"INDEX(schedule!$C:$C,MATCH(1,($M8=schedule!$A:$A)*(R$2=schedule!$B:$B),0))","v":{"$error":"#N/A"}},{"$f":"INDEX(schedule!$C:$C,MATCH(1,($M8=schedule!$A:$A)*(S$2=schedule!$B:$B),0))","v":{"$error":"#N/A"}},{"$f":"INDEX(schedule!$C:$C,MATCH(1,($M8=schedule!$A:$A)*(T$2=schedule!$B:$B),0))","v":{"$error":"#N/A"}}]
[null,null,null,null,null,"To-Do Today",null,null,null,null,null,null,"2020-09-07",{"$f":"IFERROR(INDEX(tzolkinGlyphs,MATCH((ROUND(IF(((ROUND(1+(20*(((M9-tzolkinStartDate)/20)-(ROUNDDOWN((M9-tzolkinStartDate)/20,0)))),0))-(IF(((((ROUNDDOWN(M9-tzolkinStartDate,0)+1)/13)-ROUNDDOWN((ROUNDDOWN(M9-tzolkinStartDate,0)+1)/13,0))*13)>0,((((ROUNDDOWN(M9-tzolkinStartDate,0)+1)/13)-ROUNDDOWN((ROUNDDOWN(M9-tzolkinStartDate,0)+1)/13,0))*13),13)))<0,20+((ROUND(1+(20*(((M9-tzolkinStartDate)/20)-(ROUNDDOWN((M9-tzolkinStartDate)/20,0)))),0))-(IF(((((ROUNDDOWN(M9-tzolkinStartDate,0)+1)/13)-ROUNDDOWN((ROUNDDOWN(M9-tzolkinStartDate,0)+1)/13,0))*13)>0,((((ROUNDDOWN(M9-tzolkinStartDate,0)+1)/13)-ROUNDDOWN((ROUNDDOWN(M9-tzolkinStartDate,0)+1)/13,0))*13),13))),((ROUND(1+(20*(((M9-tzolkinStartDate)/20)-(ROUNDDOWN((M9-tzolkinStartDate)/20,0)))),0))-(IF(((((ROUNDDOWN(M9-tzolkinStartDate,0)+1)/13)-ROUNDDOWN((ROUNDDOWN(M9-tzolkinStartDate,0)+1)/13,0))*13)>0,((((ROUNDDOWN(M9-tzolkinStartDate,0)+1)/13)-ROUNDDOWN((ROUNDDOWN(M9-tzolkinStartDate,0)+1)/13,0))*13),13)))),0)+1),glyphPosition,0)),\"Manik\")","v":"Chicchan"},{"$f":"(IF(((((ROUNDDOWN(M9-tzolkinStartDate,0)+1)/13)-ROUNDDOWN((ROUNDDOWN(M9-tzolkinStartDate,0)+1)/13,0))*13)>0,((((ROUNDDOWN(M9-tzolkinStartDate,0)+1)/13)-ROUNDDOWN((ROUNDDOWN(M9-tzolkinStartDate,0)+1)/13,0))*13),13))","v":13},{"$f":"INDEX(tzolkinGlyphs,MATCH(ROUND((((((M9-tzolkinStartDate)/20)-(ROUNDDOWN((M9-tzolkinStartDate)/20,0)))*20)+1),0),glyphPosition,0))","v":"Caban"},null,{"$f":"INDEX(schedule!$C:$C,MATCH(1,($M9=schedule!$A:$A)*(R$2=schedule!$B:$B),0))","v":{"$error":"#N/A"}},{"$f":"INDEX(schedule!$C:$C,MATCH(1,($M9=schedule!$A:$A)*(S$2=schedule!$B:$B),0))","v":{"$error":"#N/A"}},{"$f":"INDEX(schedule!$C:$C,MATCH(1,($M9=schedule!$A:$A)*(T$2=schedule!$B:$B),0))","v":{"$error":"#N/A"}}]
[null,null,null,null,6,null,null,null,null,null,null,null,"2020-09-08",{"$f":"IFERROR(INDEX(tzolkinGlyphs,MATCH((ROUND(IF(((ROUND(1+(20*(((M10-tzolkinStartDate)/20)-(ROUNDDOWN((M10-tzolkinStartDate)/20,0)))),0))-(IF(((((ROUNDDOWN(M10-tzolkinStartDate,0)+1)/13)-ROUNDDOWN((ROUNDDOWN(M10-tzolkinStartDate,0)+1)/13,0))*13)>0,((((ROUNDDOWN(M10-tzolkinStartDate,0)+1)/13)-ROUNDDOWN((ROUNDDOWN(M10-tzolkinStartDate,0)+1)/13,0))*13),13)))<0,20+((ROUND(1+(20*(((M10-tzolkinStartDate)/20)-(ROUNDDOWN((M10-tzolkinStartDate)/20,0)))),0))-(IF(((((ROUNDDOWN(M10-tzolkinStartDate,0)+1)/13)-ROUNDDOWN((ROUNDDOWN(M10-tzolkinStartDate,0)+1)/13,0))*13)>0,((((ROUNDDOWN(M10-tzolkinStartDate,0)+1)/13)-ROUNDDOWN((ROUNDDOWN(M10-tzolkinStartDate,0)+1)/13,0))*13),13))),((ROUND(1+(20*(((M10-tzolkinStartDate)/20)-(ROUNDDOWN((M10-tzolkinStartDate)/20,0)))),0))-(IF(((((ROUNDDOWN(M10-tzolkinStartDate,0)+1)/13)-ROUNDDOWN((ROUNDDOWN(M10-tzolkinStartDate,0)+1)/13,0))*13)>0,((((ROUNDDOWN(M10-tzolkinStartDate,0)+1)/13)-ROUNDDOWN((ROUNDDOWN(M10-tzolkinStartDate,0)+1)/13,0))*13),13)))),0)+1),glyphPosition,0)),\"Manik\")","v":"Etznab"},{"$f":"(IF(((((ROUNDDOWN(M10-tzolkinStartDate,0)+1)/13)-ROUNDDOWN((ROUNDDOWN(M10-tzolkinStartDate,0)+1)/13,0))*13)>0,((((ROUNDDOWN(M10-tzolkinStartDate,0)+1)/13)-ROUNDDOWN((ROUNDDOWN(M10-tzolkinStartDate,0)+1)/13,0))*13),13))","v":1.0000000000000426},{"$f":"INDEX(tzolkinGlyphs,MATCH(ROUND((((((M10-tzolkinStartDate)/20)-(ROUNDDOWN((M10-tzolkinStartDate)/20,0)))*20)+1),0),glyphPosition,0))","v":"Etznab"},null,{"$f":"INDEX(schedule!$C:$C,MATCH(1,($M10=schedule!$A:$A)*(R$2=schedule!$B:$B),0))","v":{"$error":"#N/A"}},{"$f":"INDEX(schedule!$C:$C,MATCH(1,($M10=schedule!$A:$A)*(S$2=schedule!$B:$B),0))","v":{"$error":"#N/A"}},{"$f":"INDEX(schedule!$C:$C,MATCH(1,($M10=schedule!$A:$A)*(T$2=schedule!$B:$B),0))","v":{"$error":"#N/A"}}]
[null,null,null,null,{"$f":"E10+1","v":7},null,null,null,null,null,null,null,"2020-09-09",{"$f":"IFERROR(INDEX(tzolkinGlyphs,MATCH((ROUND(IF(((ROUND(1+(20*(((M11-tzolkinStartDate)/20)-(ROUNDDOWN((M11-tzolkinStartDate)/20,0)))),0))-(IF(((((ROUNDDOWN(M11-tzolkinStartDate,0)+1)/13)-ROUNDDOWN((ROUNDDOWN(M11-tzolkinStartDate,0)+1)/13,0))*13)>0,((((ROUNDDOWN(M11-tzolkinStartDate,0)+1)/13)-ROUNDDOWN((ROUNDDOWN(M11-tzolkinStartDate,0)+1)/13,0))*13),13)))<0,20+((ROUND(1+(20*(((M11-tzolkinStartDate)/20)-(ROUNDDOWN((M11-tzolkinStartDate)/20,0)))),0))-(IF(((((ROUNDDOWN(M11-tzolkinStartDate,0)+1)/13)-ROUNDDOWN((ROUNDDOWN(M11-tzolkinStartDate,0)+1)/13,0))*13)>0,((((ROUNDDOWN(M11-tzolkinStartDate,0)+1)/13)-ROUNDDOWN((ROUNDDOWN(M11-tzolkinStartDate,0)+1)/13,0))*13),13))),((ROUND(1+(20*(((M11-tzolkinStartDate)/20)-(ROUNDDOWN((M11-tzolkinStartDate)/20,0)))),0))-(IF(((((ROUNDDOWN(M11-tzolkinStartDate,0)+1)/13)-ROUNDDOWN((ROUNDDOWN(M11-tzolkinStartDate,0)+1)/13,0))*13)>0,((((ROUNDDOWN(M11-tzolkinStartDate,0)+1)/13)-ROUNDDOWN((ROUNDDOWN(M11-tzolkinStartDate,0)+1)/13,0))*13),13)))),0)+1),glyphPosition,0)),\"Manik\")","v":"Etznab"},{"$f":"(IF(((((ROUNDDOWN(M11-tzolkinStartDate,0)+1)/13)-ROUNDDOWN((ROUNDDOWN(M11-tzolkinStartDate,0)+1)/13,0))*13)>0,((((ROUNDDOWN(M11-tzolkinStartDate,0)+1)/13)-ROUNDDOWN((ROUNDDOWN(M11-tzolkinStartDate,0)+1)/13,0))*13),13))","v":1.9999999999999929},{"$f":"INDEX(tzolkinGlyphs,MATCH(ROUND((((((M11-tzolkinStartDate)/20)-(ROUNDDOWN((M11-tzolkinStartDate)/20,0)))*20)+1),0),glyphPosition,0))","v":"Cauac"},null,{"$f":"INDEX(schedule!$C:$C,MATCH(1,($M11=schedule!$A:$A)*(R$2=schedule!$B:$B),0))","v":{"$error":"#N/A"}},{"$f":"INDEX(schedule!$C:$C,MATCH(1,($M11=schedule!$A:$A)*(S$2=schedule!$B:$B),0))","v":{"$error":"#N/A"}},{"$f":"INDEX(schedule!$C:$C,MATCH(1,($M11=schedule!$A:$A)*(T$2=schedule!$B:$B),0))","v":{"$error":"#N/A"}}]
[null,null,null,null,{"$f":"E11+1","v":8},null,null,null,null,null,null,null,"2020-09-10",{"$f":"IFERROR(INDEX(tzolkinGlyphs,MATCH((ROUND(IF(((ROUND(1+(20*(((M12-tzolkinStartDate)/20)-(ROUNDDOWN((M12-tzolkinStartDate)/20,0)))),0))-(IF(((((ROUNDDOWN(M12-tzolkinStartDate,0)+1)/13)-ROUNDDOWN((ROUNDDOWN(M12-tzolkinStartDate,0)+1)/13,0))*13)>0,((((ROUNDDOWN(M12-tzolkinStartDate,0)+1)/13)-ROUNDDOWN((ROUNDDOWN(M12-tzolkinStartDate,0)+1)/13,0))*13),13)))<0,20+((ROUND(1+(20*(((M12-tzolkinStartDate)/20)-(ROUNDDOWN((M12-tzolkinStartDate)/20,0)))),0))-(IF(((((ROUNDDOWN(M12-tzolkinStartDate,0)+1)/13)-ROUNDDOWN((ROUNDDOWN(M12-tzolkinStartDate,0)+1)/13,0))*13)>0,((((ROUNDDOWN(M12-tzolkinStartDate,0)+1)/13)-ROUNDDOWN((ROUNDDOWN(M12-tzolkinStartDate,0)+1)/13,0))*13),13))),((ROUND(1+(20*(((M12-tzolkinStartDate)/20)-(ROUNDDOWN((M12-tzolkinStartDate)/20,0)))),0))-(IF(((((ROUNDDOWN(M12-tzolkinStartDate,0)+1)/13)-ROUNDDOWN((ROUNDDOWN(M12-tzolkinStartDate,0)+1)/13,0))*13)>0,((((ROUNDDOWN(M12-tzolkinStartDate,0)+1)/13)-ROUNDDOWN((ROUNDDOWN(M12-tzolkinStartDate,0)+1)/13,0))*13),13)))),0)+1),glyphPosition,0)),\"Manik\")","v":"Etznab"},{"$f":"(IF(((((ROUNDDOWN(M12-tzolkinStartDate,0)+1)/13)-ROUNDDOWN((ROUNDDOWN(M12-tzolkinStartDate,0)+1)/13,0))*13)>0,((((ROUNDDOWN(M12-tzolkinStartDate,0)+1)/13)-ROUNDDOWN((ROUNDDOWN(M12-tzolkinStartDate,0)+1)/13,0))*13),13))","v":3.0000000000000355},{"$f":"INDEX(tzolkinGlyphs,MATCH(ROUND((((((M12-tzolkinStartDate)/20)-(ROUNDDOWN((M12-tzolkinStartDate)/20,0)))*20)+1),0),glyphPosition,0))","v":"Ahau"},null,{"$f":"INDEX(schedule!$C:$C,MATCH(1,($M12=schedule!$A:$A)*(R$2=schedule!$B:$B),0))","v":{"$error":"#N/A"}},{"$f":"INDEX(schedule!$C:$C,MATCH(1,($M12=schedule!$A:$A)*(S$2=schedule!$B:$B),0))","v":{"$error":"#N/A"}},{"$f":"INDEX(schedule!$C:$C,MATCH(1,($M12=schedule!$A:$A)*(T$2=schedule!$B:$B),0))","v":{"$error":"#N/A"}}]
[null,null,null,null,9,null,null,null,null,null,null,null,"2020-09-11",{"$f":"IFERROR(INDEX(tzolkinGlyphs,MATCH((ROUND(IF(((ROUND(1+(20*(((M13-tzolkinStartDate)/20)-(ROUNDDOWN((M13-tzolkinStartDate)/20,0)))),0))-(IF(((((ROUNDDOWN(M13-tzolkinStartDate,0)+1)/13)-ROUNDDOWN((ROUNDDOWN(M13-tzolkinStartDate,0)+1)/13,0))*13)>0,((((ROUNDDOWN(M13-tzolkinStartDate,0)+1)/13)-ROUNDDOWN((ROUNDDOWN(M13-tzolkinStartDate,0)+1)/13,0))*13),13)))<0,20+((ROUND(1+(20*(((M13-tzolkinStartDate)/20)-(ROUNDDOWN((M13-tzolkinStartDate)/20,0)))),0))-(IF(((((ROUNDDOWN(M13-tzolkinStartDate,0)+1)/13)-ROUNDDOWN((ROUNDDOWN(M13-tzolkinStartDate,0)+1)/13,0))*13)>0,((((ROUNDDOWN(M13-tzolkinStartDate,0)+1)/13)-ROUNDDOWN((ROUNDDOWN(M13-tzolkinStartDate,0)+1)/13,0))*13),13))),((ROUND(1+(20*(((M13-tzolkinStartDate)/20)-(ROUNDDOWN((M13-tzolkinStartDate)/20,0)))),0))-(IF(((((ROUNDDOWN(M13-tzolkinStartDate,0)+1)/13)-ROUNDDOWN((ROUNDDOWN(M13-tzolkinStartDate,0)+1)/13,0))*13)>0,((((ROUNDDOWN(M13-tzolkinStartDate,0)+1)/13)-ROUNDDOWN((ROUNDDOWN(M13-tzolkinStartDate,0)+1)/13,0))*13),13)))),0)+1),glyphPosition,0)),\"Manik\")","v":"Etznab"},{"$f":"(IF(((((ROUNDDOWN(M13-tzolkinStartDate,0)+1)/13)-ROUNDDOWN((ROUNDDOWN(M13-tzolkinStartDate,0)+1)/13,0))*13)>0,((((ROUNDDOWN(M13-tzolkinStartDate,0)+1)/13)-ROUNDDOWN((ROUNDDOWN(M13-tzolkinStartDate,0)+1)/13,0))*13),13))","v":3.9999999999999858},{"$f":"INDEX(tzolkinGlyphs,MATCH(ROUND((((((M13-tzolkinStartDate)/20)-(ROUNDDOWN((M13-tzolkinStartDate)/20,0)))*20)+1),0),glyphPosition,0))","v":"Imix"},null,{"$f":"INDEX(schedule!$C:$C,MATCH(1,($M13=schedule!$A:$A)*(R$2=schedule!$B:$B),0))","v":{"$error":"#N/A"}},{"$f":"INDEX(schedule!$C:$C,MATCH(1,($M13=schedule!$A:$A)*(S$2=schedule!$B:$B),0))","v":{"$error":"#N/A"}},{"$f":"INDEX(schedule!$C:$C,MATCH(1,($M13=schedule!$A:$A)*(T$2=schedule!$B:$B),0))","v":{"$error":"#N/A"}}]
[null,null,null,null,10,null,null,null,null,null,null,null,"2020-09-12",{"$f":"IFERROR(INDEX(tzolkinGlyphs,MATCH((ROUND(IF(((ROUND(1+(20*(((M14-tzolkinStartDate)/20)-(ROUNDDOWN((M14-tzolkinStartDate)/20,0)))),0))-(IF(((((ROUNDDOWN(M14-tzolkinStartDate,0)+1)/13)-ROUNDDOWN((ROUNDDOWN(M14-tzolkinStartDate,0)+1)/13,0))*13)>0,((((ROUNDDOWN(M14-tzolkinStartDate,0)+1)/13)-ROUNDDOWN((ROUNDDOWN(M14-tzolkinStartDate,0)+1)/13,0))*13),13)))<0,20+((ROUND(1+(20*(((M14-tzolkinStartDate)/20)-(ROUNDDOWN((M14-tzolkinStartDate)/20,0)))),0))-(IF(((((ROUNDDOWN(M14-tzolkinStartDate,0)+1)/13)-ROUNDDOWN((ROUNDDOWN(M14-tzolkinStartDate,0)+1)/13,0))*13)>0,((((ROUNDDOWN(M14-tzolkinStartDate,0)+1)/13)-ROUNDDOWN((ROUNDDOWN(M14-tzolkinStartDate,0)+1)/13,0))*13),13))),((ROUND(1+(20*(((M14-tzolkinStartDate)/20)-(ROUNDDOWN((M14-tzolkinStartDate)/20,0)))),0))-(IF(((((ROUNDDOWN(M14-tzolkinStartDate,0)+1)/13)-ROUNDDOWN((ROUNDDOWN(M14-tzolkinStartDate,0)+1)/13,0))*13)>0,((((ROUNDDOWN(M14-tzolkinStartDate,0)+1)/13)-ROUNDDOWN((ROUNDDOWN(M14-tzolkinStartDate,0)+1)/13,0))*13),13)))),0)+1),glyphPosition,0)),\"Manik\")","v":"Etznab"},{"$f":"(IF(((((ROUNDDOWN(M14-tzolkinStartDate,0)+1)/13)-ROUNDDOWN((ROUNDDOWN(M14-tzolkinStartDate,0)+1)/13,0))*13)>0,((((ROUNDDOWN(M14-tzolkinStartDate,0)+1)/13)-ROUNDDOWN((ROUNDDOWN(M14-tzolkinStartDate,0)+1)/13,0))*13),13))","v":5.0000000000000284},{"$f":"INDEX(tzolkinGlyphs,MATCH(ROUND((((((M14-tzolkinStartDate)/20)-(ROUNDDOWN((M14-tzolkinStartDate)/20,0)))*20)+1),0),glyphPosition,0))","v":"Ik"},null,{"$f":"INDEX(schedule!$C:$C,MATCH(1,($M14=schedule!$A:$A)*(R$2=schedule!$B:$B),0))","v":{"$error":"#N/A"}},{"$f":"INDEX(schedule!$C:$C,MATCH(1,($M14=schedule!$A:$A)*(S$2=schedule!$B:$B),0))","v":{"$error":"#N/A"}},{"$f":"INDEX(schedule!$C:$C,MATCH(1,($M14=schedule!$A:$A)*(T$2=schedule!$B:$B),0))","v":{"$error":"#N/A"}}]
[null,null,null,null,11,null,null,null,null,null,null,null,"2020-09-13",{"$f":"IFERROR(INDEX(tzolkinGlyphs,MATCH((ROUND(IF(((ROUND(1+(20*(((M15-tzolkinStartDate)/20)-(ROUNDDOWN((M15-tzolkinStartDate)/20,0)))),0))-(IF(((((ROUNDDOWN(M15-tzolkinStartDate,0)+1)/13)-ROUNDDOWN((ROUNDDOWN(M15-tzolkinStartDate,0)+1)/13,0))*13)>0,((((ROUNDDOWN(M15-tzolkinStartDate,0)+1)/13)-ROUNDDOWN((ROUNDDOWN(M15-tzolkinStartDate,0)+1)/13,0))*13),13)))<0,20+((ROUND(1+(20*(((M15-tzolkinStartDate)/20)-(ROUNDDOWN((M15-tzolkinStartDate)/20,0)))),0))-(IF(((((ROUNDDOWN(M15-tzolkinStartDate,0)+1)/13)-ROUNDDOWN((ROUNDDOWN(M15-tzolkinStartDate,0)+1)/13,0))*13)>0,((((ROUNDDOWN(M15-tzolkinStartDate,0)+1)/13)-ROUNDDOWN((ROUNDDOWN(M15-tzolkinStartDate,0)+1)/13,0))*13),13))),((ROUND(1+(20*(((M15-tzolkinStartDate)/20)-(ROUNDDOWN((M15-tzolkinStartDate)/20,0)))),0))-(IF(((((ROUNDDOWN(M15-tzolkinStartDate,0)+1)/13)-ROUNDDOWN((ROUNDDOWN(M15-tzolkinStartDate,0)+1)/13,0))*13)>0,((((ROUNDDOWN(M15-tzolkinStartDate,0)+1)/13)-ROUNDDOWN((ROUNDDOWN(M15-tzolkinStartDate,0)+1)/13,0))*13),13)))),0)+1),glyphPosition,0)),\"Manik\")","v":"Etznab"},{"$f":"(IF(((((ROUNDDOWN(M15-tzolkinStartDate,0)+1)/13)-ROUNDDOWN((ROUNDDOWN(M15-tzolkinStartDate,0)+1)/13,0))*13)>0,((((ROUNDDOWN(M15-tzolkinStartDate,0)+1)/13)-ROUNDDOWN((ROUNDDOWN(M15-tzolkinStartDate,0)+1)/13,0))*13),13))","v":5.9999999999999787},{"$f":"INDEX(tzolkinGlyphs,MATCH(ROUND((((((M15-tzolkinStartDate)/20)-(ROUNDDOWN((M15-tzolkinStartDate)/20,0)))*20)+1),0),glyphPosition,0))","v":"Akbal"},null,{"$f":"INDEX(schedule!$C:$C,MATCH(1,($M15=schedule!$A:$A)*(R$2=schedule!$B:$B),0))","v":{"$error":"#N/A"}},{"$f":"INDEX(schedule!$C:$C,MATCH(1,($M15=schedule!$A:$A)*(S$2=schedule!$B:$B),0))","v":{"$error":"#N/A"}},{"$f":"INDEX(schedule!$C:$C,MATCH(1,($M15=schedule!$A:$A)*(T$2=schedule!$B:$B),0))","v":{"$error":"#N/A"}}," "]
[null,null,null,null,12,null,null,null,null,null,null,null,"2020-09-14",{"$f":"IFERROR(INDEX(tzolkinGlyphs,MATCH((ROUND(IF(((ROUND(1+(20*(((M16-tzolkinStartDate)/20)-(ROUNDDOWN((M16-tzolkinStartDate)/20,0)))),0))-(IF(((((ROUNDDOWN(M16-tzolkinStartDate,0)+1)/13)-ROUNDDOWN((ROUNDDOWN(M16-tzolkinStartDate,0)+1)/13,0))*13)>0,((((ROUNDDOWN(M16-tzolkinStartDate,0)+1)/13)-ROUNDDOWN((ROUNDDOWN(M16-tzolkinStartDate,0)+1)/13,0))*13),13)))<0,20+((ROUND(1+(20*(((M16-tzolkinStartDate)/20)-(ROUNDDOWN((M16-tzolkinStartDate)/20,0)))),0))-(IF(((((ROUNDDOWN(M16-tzolkinStartDate,0)+1)/13)-ROUNDDOWN((ROUNDDOWN(M16-tzolkinStartDate,0)+1)/13,0))*13)>0,((((ROUNDDOWN(M16-tzolkinStartDate,0)+1)/13)-ROUNDDOWN((ROUNDDOWN(M16-tzolkinStartDate,0)+1)/13,0))*13),13))),((ROUND(1+(20*(((M16-tzolkinStartDate)/20)-(ROUNDDOWN((M16-tzolkinStartDate)/20,0)))),0))-(IF(((((ROUNDDOWN(M16-tzolkinStartDate,0)+1)/13)-ROUNDDOWN((ROUNDDOWN(M16-tzolkinStartDate,0)+1)/13,0))*13)>0,((((ROUNDDOWN(M16-tzolkinStartDate,0)+1)/13)-ROUNDDOWN((ROUNDDOWN(M16-tzolkinStartDate,0)+1)/13,0))*13),13)))),0)+1),glyphPosition,0)),\"Manik\")","v":"Etznab"},{"$f":"(IF(((((ROUNDDOWN(M16-tzolkinStartDate,0)+1)/13)-ROUNDDOWN((ROUNDDOWN(M16-tzolkinStartDate,0)+1)/13,0))*13)>0,((((ROUNDDOWN(M16-tzolkinStartDate,0)+1)/13)-ROUNDDOWN((ROUNDDOWN(M16-tzolkinStartDate,0)+1)/13,0))*13),13))","v":7.0000000000000213},{"$f":"INDEX(tzolkinGlyphs,MATCH(ROUND((((((M16-tzolkinStartDate)/20)-(ROUNDDOWN((M16-tzolkinStartDate)/20,0)))*20)+1),0),glyphPosition,0))","v":"Kan"},null,{"$f":"INDEX(schedule!$C:$C,MATCH(1,($M16=schedule!$A:$A)*(R$2=schedule!$B:$B),0))","v":{"$error":"#N/A"}},{"$f":"INDEX(schedule!$C:$C,MATCH(1,($M16=schedule!$A:$A)*(S$2=schedule!$B:$B),0))","v":{"$error":"#N/A"}},{"$f":"INDEX(schedule!$C:$C,MATCH(1,($M16=schedule!$A:$A)*(T$2=schedule!$B:$B),0))","v":{"$error":"#N/A"}}," "]
[null,null,null,null,13,null,null,null,null,null,null,null,"2020-09-15",{"$f":"IFERROR(INDEX(tzolkinGlyphs,MATCH((ROUND(IF(((ROUND(1+(20*(((M17-tzolkinStartDate)/20)-(ROUNDDOWN((M17-tzolkinStartDate)/20,0)))),0))-(IF(((((ROUNDDOWN(M17-tzolkinStartDate,0)+1)/13)-ROUNDDOWN((ROUNDDOWN(M17-tzolkinStartDate,0)+1)/13,0))*13)>0,((((ROUNDDOWN(M17-tzolkinStartDate,0)+1)/13)-ROUNDDOWN((ROUNDDOWN(M17-tzolkinStartDate,0)+1)/13,0))*13),13)))<0,20+((ROUND(1+(20*(((M17-tzolkinStartDate)/20)-(ROUNDDOWN((M17-tzolkinStartDate)/20,0)))),0))-(IF(((((ROUNDDOWN(M17-tzolkinStartDate,0)+1)/13)-ROUNDDOWN((ROUNDDOWN(M17-tzolkinStartDate,0)+1)/13,0))*13)>0,((((ROUNDDOWN(M17-tzolkinStartDate,0)+1)/13)-ROUNDDOWN((ROUNDDOWN(M17-tzolkinStartDate,0)+1)/13,0))*13),13))),((ROUND(1+(20*(((M17-tzolkinStartDate)/20)-(ROUNDDOWN((M17-tzolkinStartDate)/20,0)))),0))-(IF(((((ROUNDDOWN(M17-tzolkinStartDate,0)+1)/13)-ROUNDDOWN((ROUNDDOWN(M17-tzolkinStartDate,0)+1)/13,0))*13)>0,((((ROUNDDOWN(M17-tzolkinStartDate,0)+1)/13)-ROUNDDOWN((ROUNDDOWN(M17-tzolkinStartDate,0)+1)/13,0))*13),13)))),0)+1),glyphPosition,0)),\"Manik\")","v":"Etznab"},{"$f":"(IF(((((ROUNDDOWN(M17-tzolkinStartDate,0)+1)/13)-ROUNDDOWN((ROUNDDOWN(M17-tzolkinStartDate,0)+1)/13,0))*13)>0,((((ROUNDDOWN(M17-tzolkinStartDate,0)+1)/13)-ROUNDDOWN((ROUNDDOWN(M17-tzolkinStartDate,0)+1)/13,0))*13),13))","v":7.9999999999999716},{"$f":"INDEX(tzolkinGlyphs,MATCH(ROUND((((((M17-tzolkinStartDate)/20)-(ROUNDDOWN((M17-tzolkinStartDate)/20,0)))*20)+1),0),glyphPosition,0))","v":"Chicchan"},null,{"$f":"INDEX(schedule!$C:$C,MATCH(1,($M17=schedule!$A:$A)*(R$2=schedule!$B:$B),0))","v":{"$error":"#N/A"}},{"$f":"INDEX(schedule!$C:$C,MATCH(1,($M17=schedule!$A:$A)*(S$2=schedule!$B:$B),0))","v":{"$error":"#N/A"}},{"$f":"INDEX(schedule!$C:$C,MATCH(1,($M17=schedule!$A:$A)*(T$2=schedule!$B:$B),0))","v":{"$error":"#N/A"}}," "]
[null,null,null,null,14,null,null,null,null,null,null,null,"2020-09-16",{"$f":"IFERROR(INDEX(tzolkinGlyphs,MATCH((ROUND(IF(((ROUND(1+(20*(((M18-tzolkinStartDate)/20)-(ROUNDDOWN((M18-tzolkinStartDate)/20,0)))),0))-(IF(((((ROUNDDOWN(M18-tzolkinStartDate,0)+1)/13)-ROUNDDOWN((ROUNDDOWN(M18-tzolkinStartDate,0)+1)/13,0))*13)>0,((((ROUNDDOWN(M18-tzolkinStartDate,0)+1)/13)-ROUNDDOWN((ROUNDDOWN(M18-tzolkinStartDate,0)+1)/13,0))*13),13)))<0,20+((ROUND(1+(20*(((M18-tzolkinStartDate)/20)-(ROUNDDOWN((M18-tzolkinStartDate)/20,0)))),0))-(IF(((((ROUNDDOWN(M18-tzolkinStartDate,0)+1)/13)-ROUNDDOWN((ROUNDDOWN(M18-tzolkinStartDate,0)+1)/13,0))*13)>0,((((ROUNDDOWN(M18-tzolkinStartDate,0)+1)/13)-ROUNDDOWN((ROUNDDOWN(M18-tzolkinStartDate,0)+1)/13,0))*13),13))),((ROUND(1+(20*(((M18-tzolkinStartDate)/20)-(ROUNDDOWN((M18-tzolkinStartDate)/20,0)))),0))-(IF(((((ROUNDDOWN(M18-tzolkinStartDate,0)+1)/13)-ROUNDDOWN((ROUNDDOWN(M18-tzolkinStartDate,0)+1)/13,0))*13)>0,((((ROUNDDOWN(M18-tzolkinStartDate,0)+1)/13)-ROUNDDOWN((ROUNDDOWN(M18-tzolkinStartDate,0)+1)/13,0))*13),13)))),0)+1),glyphPosition,0)),\"Manik\")","v":"Etznab"},{"$f":"(IF(((((ROUNDDOWN(M18-tzolkinStartDate,0)+1)/13)-ROUNDDOWN((ROUNDDOWN(M18-tzolkinStartDate,0)+1)/13,0))*13)>0,((((ROUNDDOWN(M18-tzolkinStartDate,0)+1)/13)-ROUNDDOWN((ROUNDDOWN(M18-tzolkinStartDate,0)+1)/13,0))*13),13))","v":9.0000000000000142},{"$f":"INDEX(tzolkinGlyphs,MATCH(ROUND((((((M18-tzolkinStartDate)/20)-(ROUNDDOWN((M18-tzolkinStartDate)/20,0)))*20)+1),0),glyphPosition,0))","v":"Cimi"},null,{"$f":"INDEX(schedule!$C:$C,MATCH(1,($M18=schedule!$A:$A)*(R$2=schedule!$B:$B),0))","v":{"$error":"#N/A"}},{"$f":"INDEX(schedule!$C:$C,MATCH(1,($M18=schedule!$A:$A)*(S$2=schedule!$B:$B),0))","v":{"$error":"#N/A"}},{"$f":"INDEX(schedule!$C:$C,MATCH(1,($M18=schedule!$A:$A)*(T$2=schedule!$B:$B),0))","v":{"$error":"#N/A"}}," "]
[null,"Data","You can put any information",null,15,null,null,null,null,null,null,null,"2020-09-17",{"$f":"IFERROR(INDEX(tzolkinGlyphs,MATCH((ROUND(IF(((ROUND(1+(20*(((M19-tzolkinStartDate)/20)-(ROUNDDOWN((M19-tzolkinStartDate)/20,0)))),0))-(IF(((((ROUNDDOWN(M19-tzolkinStartDate,0)+1)/13)-ROUNDDOWN((ROUNDDOWN(M19-tzolkinStartDate,0)+1)/13,0))*13)>0,((((ROUNDDOWN(M19-tzolkinStartDate,0)+1)/13)-ROUNDDOWN((ROUNDDOWN(M19-tzolkinStartDate,0)+1)/13,0))*13),13)))<0,20+((ROUND(1+(20*(((M19-tzolkinStartDate)/20)-(ROUNDDOWN((M19-tzolkinStartDate)/20,0)))),0))-(IF(((((ROUNDDOWN(M19-tzolkinStartDate,0)+1)/13)-ROUNDDOWN((ROUNDDOWN(M19-tzolkinStartDate,0)+1)/13,0))*13)>0,((((ROUNDDOWN(M19-tzolkinStartDate,0)+1)/13)-ROUNDDOWN((ROUNDDOWN(M19-tzolkinStartDate,0)+1)/13,0))*13),13))),((ROUND(1+(20*(((M19-tzolkinStartDate)/20)-(ROUNDDOWN((M19-tzolkinStartDate)/20,0)))),0))-(IF(((((ROUNDDOWN(M19-tzolkinStartDate,0)+1)/13)-ROUNDDOWN((ROUNDDOWN(M19-tzolkinStartDate,0)+1)/13,0))*13)>0,((((ROUNDDOWN(M19-tzolkinStartDate,0)+1)/13)-ROUNDDOWN((ROUNDDOWN(M19-tzolkinStartDate,0)+1)/13,0))*13),13)))),0)+1),glyphPosition,0)),\"Manik\")","v":"Etznab"},{"$f":"(IF(((((ROUNDDOWN(M19-tzolkinStartDate,0)+1)/13)-ROUNDDOWN((ROUNDDOWN(M19-tzolkinStartDate,0)+1)/13,0))*13)>0,((((ROUNDDOWN(M19-tzolkinStartDate,0)+1)/13)-ROUNDDOWN((ROUNDDOWN(M19-tzolkinStartDate,0)+1)/13,0))*13),13))","v":9.9999999999999645},{"$f":"INDEX(tzolkinGlyphs,MATCH(ROUND((((((M19-tzolkinStartDate)/20)-(ROUNDDOWN((M19-tzolkinStartDate)/20,0)))*20)+1),0),glyphPosition,0))","v":"Manik"},null,{"$f":"INDEX(schedule!$C:$C,MATCH(1,($M19=schedule!$A:$A)*(R$2=schedule!$B:$B),0))","v":{"$error":"#N/A"}},{"$f":"INDEX(schedule!$C:$C,MATCH(1,($M19=schedule!$A:$A)*(S$2=schedule!$B:$B),0))","v":{"$error":"#N/A"}},{"$f":"INDEX(schedule!$C:$C,MATCH(1,($M19=schedule!$A:$A)*(T$2=schedule!$B:$B),0))","v":{"$error":"#N/A"}}," "]
[null,"Data 2","you want to track in these",null,16,null,null,null,null,null,null,null,"2020-09-18",{"$f":"IFERROR(INDEX(tzolkinGlyphs,MATCH((ROUND(IF(((ROUND(1+(20*(((M20-tzolkinStartDate)/20)-(ROUNDDOWN((M20-tzolkinStartDate)/20,0)))),0))-(IF(((((ROUNDDOWN(M20-tzolkinStartDate,0)+1)/13)-ROUNDDOWN((ROUNDDOWN(M20-tzolkinStartDate,0)+1)/13,0))*13)>0,((((ROUNDDOWN(M20-tzolkinStartDate,0)+1)/13)-ROUNDDOWN((ROUNDDOWN(M20-tzolkinStartDate,0)+1)/13,0))*13),13)))<0,20+((ROUND(1+(20*(((M20-tzolkinStartDate)/20)-(ROUNDDOWN((M20-tzolkinStartDate)/20,0)))),0))-(IF(((((ROUNDDOWN(M20-tzolkinStartDate,0)+1)/13)-ROUNDDOWN((ROUNDDOWN(M20-tzolkinStartDate,0)+1)/13,0))*13)>0,((((ROUNDDOWN(M20-tzolkinStartDate,0)+1)/13)-ROUNDDOWN((ROUNDDOWN(M20-tzolkinStartDate,0)+1)/13,0))*13),13))),((ROUND(1+(20*(((M20-tzolkinStartDate)/20)-(ROUNDDOWN((M20-tzolkinStartDate)/20,0)))),0))-(IF(((((ROUNDDOWN(M20-tzolkinStartDate,0)+1)/13)-ROUNDDOWN((ROUNDDOWN(M20-tzolkinStartDate,0)+1)/13,0))*13)>0,((((ROUNDDOWN(M20-tzolkinStartDate,0)+1)/13)-ROUNDDOWN((ROUNDDOWN(M20-tzolkinStartDate,0)+1)/13,0))*13),13)))),0)+1),glyphPosition,0)),\"Manik\")","v":"Etznab"},{"$f":"(IF(((((ROUNDDOWN(M20-tzolkinStartDate,0)+1)/13)-ROUNDDOWN((ROUNDDOWN(M20-tzolkinStartDate,0)+1)/13,0))*13)>0,((((ROUNDDOWN(M20-tzolkinStartDate,0)+1)/13)-ROUNDDOWN((ROUNDDOWN(M20-tzolkinStartDate,0)+1)/13,0))*13),13))","v":11.000000000000007},{"$f":"INDEX(tzolkinGlyphs,MATCH(ROUND((((((M20-tzolkinStartDate)/20)-(ROUNDDOWN((M20-tzolkinStartDate)/20,0)))*20)+1),0),glyphPosition,0))","v":"Lamat"},null,{"$f":"INDEX(schedule!$C:$C,MATCH(1,($M20=schedule!$A:$A)*(R$2=schedule!$B:$B),0))","v":{"$error":"#N/A"}},{"$f":"INDEX(schedule!$C:$C,MATCH(1,($M20=schedule!$A:$A)*(S$2=schedule!$B:$B),0))","v":{"$error":"#N/A"}},{"$f":"INDEX(schedule!$C:$C,MATCH(1,($M20=schedule!$A:$A)*(T$2=schedule!$B:$B),0))","v":{"$error":"#N/A"}}," "]
[null,"(change me)","fields. Mood, weight, etc.",null,17,null,null,null,null,null,null,null,"2020-09-19",{"$f":"IFERROR(INDEX(tzolkinGlyphs,MATCH((ROUND(IF(((ROUND(1+(20*(((M21-tzolkinStartDate)/20)-(ROUNDDOWN((M21-tzolkinStartDate)/20,0)))),0))-(IF(((((ROUNDDOWN(M21-tzolkinStartDate,0)+1)/13)-ROUNDDOWN((ROUNDDOWN(M21-tzolkinStartDate,0)+1)/13,0))*13)>0,((((ROUNDDOWN(M21-tzolkinStartDate,0)+1)/13)-ROUNDDOWN((ROUNDDOWN(M21-tzolkinStartDate,0)+1)/13,0))*13),13)))<0,20+((ROUND(1+(20*(((M21-tzolkinStartDate)/20)-(ROUNDDOWN((M21-tzolkinStartDate)/20,0)))),0))-(IF(((((ROUNDDOWN(M21-tzolkinStartDate,0)+1)/13)-ROUNDDOWN((ROUNDDOWN(M21-tzolkinStartDate,0)+1)/13,0))*13)>0,((((ROUNDDOWN(M21-tzolkinStartDate,0)+1)/13)-ROUNDDOWN((ROUNDDOWN(M21-tzolkinStartDate,0)+1)/13,0))*13),13))),((ROUND(1+(20*(((M21-tzolkinStartDate)/20)-(ROUNDDOWN((M21-tzolkinStartDate)/20,0)))),0))-(IF(((((ROUNDDOWN(M21-tzolkinStartDate,0)+1)/13)-ROUNDDOWN((ROUNDDOWN(M21-tzolkinStartDate,0)+1)/13,0))*13)>0,((((ROUNDDOWN(M21-tzolkinStartDate,0)+1)/13)-ROUNDDOWN((ROUNDDOWN(M21-tzolkinStartDate,0)+1)/13,0))*13),13)))),0)+1),glyphPosition,0)),\"Manik\")","v":"Etznab"},{"$f":"(IF(((((ROUNDDOWN(M21-tzolkinStartDate,0)+1)/13)-ROUNDDOWN((ROUNDDOWN(M21-tzolkinStartDate,0)+1)/13,0))*13)>0,((((ROUNDDOWN(M21-tzolkinStartDate,0)+1)/13)-ROUNDDOWN((ROUNDDOWN(M21-tzolkinStartDate,0)+1)/13,0))*13),13))","v":11.999999999999957},{"$f":"INDEX(tzolkinGlyphs,MATCH(ROUND((((((M21-tzolkinStartDate)/20)-(ROUNDDOWN((M21-tzolkinStartDate)/20,0)))*20)+1),0),glyphPosition,0))","v":"Muluc"},null,{"$f":"INDEX(schedule!$C:$C,MATCH(1,($M21=schedule!$A:$A)*(R$2=schedule!$B:$B),0))","v":{"$error":"#N/A"}},{"$f":"INDEX(schedule!$C:$C,MATCH(1,($M21=schedule!$A:$A)*(S$2=schedule!$B:$B),0))","v":{"$error":"#N/A"}},{"$f":"INDEX(schedule!$C:$C,MATCH(1,($M21=schedule!$A:$A)*(T$2=schedule!$B:$B),0))","v":{"$error":"#N/A"}}," "]
[null,null,null,null,18,null,null,null,null,null,null,null,"2020-09-20",{"$f":"IFERROR(INDEX(tzolkinGlyphs,MATCH((ROUND(IF(((ROUND(1+(20*(((M22-tzolkinStartDate)/20)-(ROUNDDOWN((M22-tzolkinStartDate)/20,0)))),0))-(IF(((((ROUNDDOWN(M22-tzolkinStartDate,0)+1)/13)-ROUNDDOWN((ROUNDDOWN(M22-tzolkinStartDate,0)+1)/13,0))*13)>0,((((ROUNDDOWN(M22-tzolkinStartDate,0)+1)/13)-ROUNDDOWN((ROUNDDOWN(M22-tzolkinStartDate,0)+1)/13,0))*13),13)))<0,20+((ROUND(1+(20*(((M22-tzolkinStartDate)/20)-(ROUNDDOWN((M22-tzolkinStartDate)/20,0)))),0))-(IF(((((ROUNDDOWN(M22-tzolkinStartDate,0)+1)/13)-ROUNDDOWN((ROUNDDOWN(M22-tzolkinStartDate,0)+1)/13,0))*13)>0,((((ROUNDDOWN(M22-tzolkinStartDate,0)+1)/13)-ROUNDDOWN((ROUNDDOWN(M22-tzolkinStartDate,0)+1)/13,0))*13),13))),((ROUND(1+(20*(((M22-tzolkinStartDate)/20)-(ROUNDDOWN((M22-tzolkinStartDate)/20,0)))),0))-(IF(((((ROUNDDOWN(M22-tzolkinStartDate,0)+1)/13)-ROUNDDOWN((ROUNDDOWN(M22-tzolkinStartDate,0)+1)/13,0))*13)>0,((((ROUNDDOWN(M22-tzolkinStartDate,0)+1)/13)-ROUNDDOWN((ROUNDDOWN(M22-tzolkinStartDate,0)+1)/13,0))*13),13)))),0)+1),glyphPosition,0)),\"Manik\")","v":"Etznab"},{"$f":"(IF(((((ROUNDDOWN(M22-tzolkinStartDate,0)+1)/13)-ROUNDDOWN((ROUNDDOWN(M22-tzolkinStartDate,0)+1)/13,0))*13)>0,((((ROUNDDOWN(M22-tzolkinStartDate,0)+1)/13)-ROUNDDOWN((ROUNDDOWN(M22-tzolkinStartDate,0)+1)/13,0))*13),13))","v":13},{"$f":"INDEX(tzolkinGlyphs,MATCH(ROUND((((((M22-tzolkinStartDate)/20)-(ROUNDDOWN((M22-tzolkinStartDate)/20,0)))*20)+1),0),glyphPosition,0))","v":"Oc"},null,{"$f":"INDEX(schedule!$C:$C,MATCH(1,($M22=schedule!$A:$A)*(R$2=schedule!$B:$B),0))","v":{"$error":"#N/A"}},{"$f":"INDEX(schedule!$C:$C,MATCH(1,($M22=schedule!$A:$A)*(S$2=schedule!$B:$B),0))","v":{"$error":"#N/A"}},{"$f":"INDEX(schedule!$C:$C,MATCH(1,($M22=schedule!$A:$A)*(T$2=schedule!$B:$B),0))","v":{"$error":"#N/A"}}," "]
[null,null,null,null,19,null,null,null,null,null,null,null,"2020-09-21",{"$f":"IFERROR(INDEX(tzolkinGlyphs,MATCH((ROUND(IF(((ROUND(1+(20*(((M23-tzolkinStartDate)/20)-(ROUNDDOWN((M23-tzolkinStartDate)/20,0)))),0))-(IF(((((ROUNDDOWN(M23-tzolkinStartDate,0)+1)/13)-ROUNDDOWN((ROUNDDOWN(M23-tzolkinStartDate,0)+1)/13,0))*13)>0,((((ROUNDDOWN(M23-tzolkinStartDate,0)+1)/13)-ROUNDDOWN((ROUNDDOWN(M23-tzolkinStartDate,0)+1)/13,0))*13),13)))<0,20+((ROUND(1+(20*(((M23-tzolkinStartDate)/20)-(ROUNDDOWN((M23-tzolkinStartDate)/20,0)))),0))-(IF(((((ROUNDDOWN(M23-tzolkinStartDate,0)+1)/13)-ROUNDDOWN((ROUNDDOWN(M23-tzolkinStartDate,0)+1)/13,0))*13)>0,((((ROUNDDOWN(M23-tzolkinStartDate,0)+1)/13)-ROUNDDOWN((ROUNDDOWN(M23-tzolkinStartDate,0)+1)/13,0))*13),13))),((ROUND(1+(20*(((M23-tzolkinStartDate)/20)-(ROUNDDOWN((M23-tzolkinStartDate)/20,0)))),0))-(IF(((((ROUNDDOWN(M23-tzolkinStartDate,0)+1)/13)-ROUNDDOWN((ROUNDDOWN(M23-tzolkinStartDate,0)+1)/13,0))*13)>0,((((ROUNDDOWN(M23-tzolkinStartDate,0)+1)/13)-ROUNDDOWN((ROUNDDOWN(M23-tzolkinStartDate,0)+1)/13,0))*13),13)))),0)+1),glyphPosition,0)),\"Manik\")","v":"Chuen"},{"$f":"(IF(((((ROUNDDOWN(M23-tzolkinStartDate,0)+1)/13)-ROUNDDOWN((ROUNDDOWN(M23-tzolkinStartDate,0)+1)/13,0))*13)>0,((((ROUNDDOWN(M23-tzolkinStartDate,0)+1)/13)-ROUNDDOWN((ROUNDDOWN(M23-tzolkinStartDate,0)+1)/13,0))*13),13))","v":1.0000000000000426},{"$f":"INDEX(tzolkinGlyphs,MATCH(ROUND((((((M23-tzolkinStartDate)/20)-(ROUNDDOWN((M23-tzolkinStartDate)/20,0)))*20)+1),0),glyphPosition,0))","v":"Chuen"},null,{"$f":"INDEX(schedule!$C:$C,MATCH(1,($M23=schedule!$A:$A)*(R$2=schedule!$B:$B),0))","v":{"$error":"#N/A"}},{"$f":"INDEX(schedule!$C:$C,MATCH(1,($M23=schedule!$A:$A)*(S$2=schedule!$B:$B),0))","v":{"$error":"#N/A"}},{"$f":"INDEX(schedule!$C:$C,MATCH(1,($M23=schedule!$A:$A)*(T$2=schedule!$B:$B),0))","v":{"$error":"#N/A"}}," "]
[null,"Tzolkin",null,null,20,null,null,null,null,null,null,null,"2020-09-22",{"$f":"IFERROR(INDEX(tzolkinGlyphs,MATCH((ROUND(IF(((ROUND(1+(20*(((M24-tzolkinStartDate)/20)-(ROUNDDOWN((M24-tzolkinStartDate)/20,0)))),0))-(IF(((((ROUNDDOWN(M24-tzolkinStartDate,0)+1)/13)-ROUNDDOWN((ROUNDDOWN(M24-tzolkinStartDate,0)+1)/13,0))*13)>0,((((ROUNDDOWN(M24-tzolkinStartDate,0)+1)/13)-ROUNDDOWN((ROUNDDOWN(M24-tzolkinStartDate,0)+1)/13,0))*13),13)))<0,20+((ROUND(1+(20*(((M24-tzolkinStartDate)/20)-(ROUNDDOWN((M24-tzolkinStartDate)/20,0)))),0))-(IF(((((ROUNDDOWN(M24-tzolkinStartDate,0)+1)/13)-ROUNDDOWN((ROUNDDOWN(M24-tzolkinStartDate,0)+1)/13,0))*13)>0,((((ROUNDDOWN(M24-tzolkinStartDate,0)+1)/13)-ROUNDDOWN((ROUNDDOWN(M24-tzolkinStartDate,0)+1)/13,0))*13),13))),((ROUND(1+(20*(((M24-tzolkinStartDate)/20)-(ROUNDDOWN((M24-tzolkinStartDate)/20,0)))),0))-(IF(((((ROUNDDOWN(M24-tzolkinStartDate,0)+1)/13)-ROUNDDOWN((ROUNDDOWN(M24-tzolkinStartDate,0)+1)/13,0))*13)>0,((((ROUNDDOWN(M24-tzolkinStartDate,0)+1)/13)-ROUNDDOWN((ROUNDDOWN(M24-tzolkinStartDate,0)+1)/13,0))*13),13)))),0)+1),glyphPosition,0)),\"Manik\")","v":"Chuen"},{"$f":"(IF(((((ROUNDDOWN(M24-tzolkinStartDate,0)+1)/13)-ROUNDDOWN((ROUNDDOWN(M24-tzolkinStartDate,0)+1)/13,0))*13)>0,((((ROUNDDOWN(M24-tzolkinStartDate,0)+1)/13)-ROUNDDOWN((ROUNDDOWN(M24-tzolkinStartDate,0)+1)/13,0))*13),13))","v":1.9999999999999929},{"$f":"INDEX(tzolkinGlyphs,MATCH(ROUND((((((M24-tzolkinStartDate)/20)-(ROUNDDOWN((M24-tzolkinStartDate)/20,0)))*20)+1),0),glyphPosition,0))","v":"Eb"},null,{"$f":"INDEX(schedule!$C:$C,MATCH(1,($M24=schedule!$A:$A)*(R$2=schedule!$B:$B),0))","v":{"$error":"#N/A"}},{"$f":"INDEX(schedule!$C:$C,MATCH(1,($M24=schedule!$A:$A)*(S$2=schedule!$B:$B),0))","v":{"$error":"#N/A"}},{"$f":"INDEX(schedule!$C:$C,MATCH(1,($M24=schedule!$A:$A)*(T$2=schedule!$B:$B),0))","v":{"$error":"#N/A"}}," "]
[null,"Wave",{"$f":"wave","v":"Etznab"},null,21,null,null,null,null,null,null,null,"2020-09-23",{"$f":"IFERROR(INDEX(tzolkinGlyphs,MATCH((ROUND(IF(((ROUND(1+(20*(((M25-tzolkinStartDate)/20)-(ROUNDDOWN((M25-tzolkinStartDate)/20,0)))),0))-(IF(((((ROUNDDOWN(M25-tzolkinStartDate,0)+1)/13)-ROUNDDOWN((ROUNDDOWN(M25-tzolkinStartDate,0)+1)/13,0))*13)>0,((((ROUNDDOWN(M25-tzolkinStartDate,0)+1)/13)-ROUNDDOWN((ROUNDDOWN(M25-tzolkinStartDate,0)+1)/13,0))*13),13)))<0,20+((ROUND(1+(20*(((M25-tzolkinStartDate)/20)-(ROUNDDOWN((M25-tzolkinStartDate)/20,0)))),0))-(IF(((((ROUNDDOWN(M25-tzolkinStartDate,0)+1)/13)-ROUNDDOWN((ROUNDDOWN(M25-tzolkinStartDate,0)+1)/13,0))*13)>0,((((ROUNDDOWN(M25-tzolkinStartDate,0)+1)/13)-ROUNDDOWN((ROUNDDOWN(M25-tzolkinStartDate,0)+1)/13,0))*13),13))),((ROUND(1+(20*(((M25-tzolkinStartDate)/20)-(ROUNDDOWN((M25-tzolkinStartDate)/20,0)))),0))-(IF(((((ROUNDDOWN(M25-tzolkinStartDate,0)+1)/13)-ROUNDDOWN((ROUNDDOWN(M25-tzolkinStartDate,0)+1)/13,0))*13)>0,((((ROUNDDOWN(M25-tzolkinStartDate,0)+1)/13)-ROUNDDOWN((ROUNDDOWN(M25-tzolkinStartDate,0)+1)/13,0))*13),13)))),0)+1),glyphPosition,0)),\"Manik\")","v":"Chuen"},{"$f":"(IF(((((ROUNDDOWN(M25-tzolkinStartDate,0)+1)/13)-ROUNDDOWN((ROUNDDOWN(M25-tzolkinStartDate,0)+1)/13,0))*13)>0,((((ROUNDDOWN(M25-tzolkinStartDate,0)+1)/13)-ROUNDDOWN((ROUNDDOWN(M25-tzolkinStartDate,0)+1)/13,0))*13),13))","v":3.0000000000000355},{"$f":"INDEX(tzolkinGlyphs,MATCH(ROUND((((((M25-tzolkinStartDate)/20)-(ROUNDDOWN((M25-tzolkinStartDate)/20,0)))*20)+1),0),glyphPosition,0))","v":"Ben"},null,{"$f":"INDEX(schedule!$C:$C,MATCH(1,($M25=schedule!$A:$A)*(R$2=schedule!$B:$B),0))","v":{"$error":"#N/A"}},{"$f":"INDEX(schedule!$C:$C,MATCH(1,($M25=schedule!$A:$A)*(S$2=schedule!$B:$B),0))","v":{"$error":"#N/A"}},{"$f":"INDEX(schedule!$C:$C,MATCH(1,($M25=schedule!$A:$A)*(T$2=schedule!$B:$B),0))","v":{"$error":"#N/A"}}," "]
[null,"Tone",{"$f":"(IF(((((ROUNDDOWN(ROUNDDOWN(punchDate,0)-tzolkinStartDate,0)+1)/13)-ROUNDDOWN((ROUNDDOWN(ROUNDDOWN(punchDate,0)-tzolkinStartDate,0)+1)/13,0))*13)>0,((((ROUNDDOWN(ROUNDDOWN(punchDate,0)-tzolkinStartDate,0)+1)/13)-ROUNDDOWN((ROUNDDOWN(ROUNDDOWN(punchDate,0)-tzolkinStartDate,0)+1)/13,0))*13),13))","v":11.999999999999957},null,{"$f":"E25+1","v":22},null,null,null,null,null,null,null,"2020-09-24",{"$f":"IFERROR(INDEX(tzolkinGlyphs,MATCH((ROUND(IF(((ROUND(1+(20*(((M26-tzolkinStartDate)/20)-(ROUNDDOWN((M26-tzolkinStartDate)/20,0)))),0))-(IF(((((ROUNDDOWN(M26-tzolkinStartDate,0)+1)/13)-ROUNDDOWN((ROUNDDOWN(M26-tzolkinStartDate,0)+1)/13,0))*13)>0,((((ROUNDDOWN(M26-tzolkinStartDate,0)+1)/13)-ROUNDDOWN((ROUNDDOWN(M26-tzolkinStartDate,0)+1)/13,0))*13),13)))<0,20+((ROUND(1+(20*(((M26-tzolkinStartDate)/20)-(ROUNDDOWN((M26-tzolkinStartDate)/20,0)))),0))-(IF(((((ROUNDDOWN(M26-tzolkinStartDate,0)+1)/13)-ROUNDDOWN((ROUNDDOWN(M26-tzolkinStartDate,0)+1)/13,0))*13)>0,((((ROUNDDOWN(M26-tzolkinStartDate,0)+1)/13)-ROUNDDOWN((ROUNDDOWN(M26-tzolkinStartDate,0)+1)/13,0))*13),13))),((ROUND(1+(20*(((M26-tzolkinStartDate)/20)-(ROUNDDOWN((M26-tzolkinStartDate)/20,0)))),0))-(IF(((((ROUNDDOWN(M26-tzolkinStartDate,0)+1)/13)-ROUNDDOWN((ROUNDDOWN(M26-tzolkinStartDate,0)+1)/13,0))*13)>0,((((ROUNDDOWN(M26-tzolkinStartDate,0)+1)/13)-ROUNDDOWN((ROUNDDOWN(M26-tzolkinStartDate,0)+1)/13,0))*13),13)))),0)+1),glyphPosition,0)),\"Manik\")","v":"Chuen"},{"$f":"(IF(((((ROUNDDOWN(M26-tzolkinStartDate,0)+1)/13)-ROUNDDOWN((ROUNDDOWN(M26-tzolkinStartDate,0)+1)/13,0))*13)>0,((((ROUNDDOWN(M26-tzolkinStartDate,0)+1)/13)-ROUNDDOWN((ROUNDDOWN(M26-tzolkinStartDate,0)+1)/13,0))*13),13))","v":3.9999999999999858},{"$f":"INDEX(tzolkinGlyphs,MATCH(ROUND((((((M26-tzolkinStartDate)/20)-(ROUNDDOWN((M26-tzolkinStartDate)/20,0)))*20)+1),0),glyphPosition,0))","v":"Ix"},null,{"$f":"INDEX(schedule!$C:$C,MATCH(1,($M26=schedule!$A:$A)*(R$2=schedule!$B:$B),0))","v":"An example personal task"},{"$f":"INDEX(schedule!$C:$C,MATCH(1,($M26=schedule!$A:$A)*(S$2=schedule!$B:$B),0))","v":{"$error":"#N/A"}},{"$f":"INDEX(schedule!$C:$C,MATCH(1,($M26=schedule!$A:$A)*(T$2=schedule!$B:$B),0))","v":{"$error":"#N/A"}}," "]
[null,"Glyph",{"$f":"glyph","v":"Muluc"},null,23,null,null,null,null,null,null,null,"2020-09-25",{"$f":"IFERROR(INDEX(tzolkinGlyphs,MATCH((ROUND(IF(((ROUND(1+(20*(((M27-tzolkinStartDate)/20)-(ROUNDDOWN((M27-tzolkinStartDate)/20,0)))),0))-(IF(((((ROUNDDOWN(M27-tzolkinStartDate,0)+1)/13)-ROUNDDOWN((ROUNDDOWN(M27-tzolkinStartDate,0)+1)/13,0))*13)>0,((((ROUNDDOWN(M27-tzolkinStartDate,0)+1)/13)-ROUNDDOWN((ROUNDDOWN(M27-tzolkinStartDate,0)+1)/13,0))*13),13)))<0,20+((ROUND(1+(20*(((M27-tzolkinStartDate)/20)-(ROUNDDOWN((M27-tzolkinStartDate)/20,0)))),0))-(IF(((((ROUNDDOWN(M27-tzolkinStartDate,0)+1)/13)-ROUNDDOWN((ROUNDDOWN(M27-tzolkinStartDate,0)+1)/13,0))*13)>0,((((ROUNDDOWN(M27-tzolkinStartDate,0)+1)/13)-ROUNDDOWN((ROUNDDOWN(M27-tzolkinStartDate,0)+1)/13,0))*13),13))),((ROUND(1+(20*(((M27-tzolkinStartDate)/20)-(ROUNDDOWN((M27-tzolkinStartDate)/20,0)))),0))-(IF(((((ROUNDDOWN(M27-tzolkinStartDate,0)+1)/13)-ROUNDDOWN((ROUNDDOWN(M27-tzolkinStartDate,0)+1)/13,0))*13)>0,((((ROUNDDOWN(M27-tzolkinStartDate,0)+1)/13)-ROUNDDOWN((ROUNDDOWN(M27-tzolkinStartDate,0)+1)/13,0))*13),13)))),0)+1),glyphPosition,0)),\"Manik\")","v":"Chuen"},{"$f":"(IF(((((ROUNDDOWN(M27-tzolkinStartDate,0)+1)/13)-ROUNDDOWN((ROUNDDOWN(M27-tzolkinStartDate,0)+1)/13,0))*13)>0,((((ROUNDDOWN(M27-tzolkinStartDate,0)+1)/13)-ROUNDDOWN((ROUNDDOWN(M27-tzolkinStartDate,0)+1)/13,0))*13),13))","v":5.0000000000000284},{"$f":"INDEX(tzolkinGlyphs,MATCH(ROUND((((((M27-tzolkinStartDate)/20)-(ROUNDDOWN((M27-tzolkinStartDate)/20,0)))*20)+1),0),glyphPosition,0))","v":"Men"},null,{"$f":"INDEX(schedule!$C:$C,MATCH(1,($M27=schedule!$A:$A)*(R$2=schedule!$B:$B),0))","v":{"$error":"#N/A"}},{"$f":"INDEX(schedule!$C:$C,MATCH(1,($M27=schedule!$A:$A)*(S$2=schedule!$B:$B),0))","v":{"$error":"#N/A"}},{"$f":"INDEX(schedule!$C:$C,MATCH(1,($M27=schedule!$A:$A)*(T$2=schedule!$B:$B),0))","v":{"$error":"#N/A"}}," "]
[null,null,null,null,null,null,null,null,null,null,null,null,"2020-09-26",{"$f":"IFERROR(INDEX(tzolkinGlyphs,MATCH((ROUND(IF(((ROUND(1+(20*(((M28-tzolkinStartDate)/20)-(ROUNDDOWN((M28-tzolkinStartDate)/20,0)))),0))-(IF(((((ROUNDDOWN(M28-tzolkinStartDate,0)+1)/13)-ROUNDDOWN((ROUNDDOWN(M28-tzolkinStartDate,0)+1)/13,0))*13)>0,((((ROUNDDOWN(M28-tzolkinStartDate,0)+1)/13)-ROUNDDOWN((ROUNDDOWN(M28-tzolkinStartDate,0)+1)/13,0))*13),13)))<0,20+((ROUND(1+(20*(((M28-tzolkinStartDate)/20)-(ROUNDDOWN((M28-tzolkinStartDate)/20,0)))),0))-(IF(((((ROUNDDOWN(M28-tzolkinStartDate,0)+1)/13)-ROUNDDOWN((ROUNDDOWN(M28-tzolkinStartDate,0)+1)/13,0))*13)>0,((((ROUNDDOWN(M28-tzolkinStartDate,0)+1)/13)-ROUNDDOWN((ROUNDDOWN(M28-tzolkinStartDate,0)+1)/13,0))*13),13))),((ROUND(1+(20*(((M28-tzolkinStartDate)/20)-(ROUNDDOWN((M28-tzolkinStartDate)/20,0)))),0))-(IF(((((ROUNDDOWN(M28-tzolkinStartDate,0)+1)/13)-ROUNDDOWN((ROUNDDOWN(M28-tzolkinStartDate,0)+1)/13,0))*13)>0,((((ROUNDDOWN(M28-tzolkinStartDate,0)+1)/13)-ROUNDDOWN((ROUNDDOWN(M28-tzolkinStartDate,0)+1)/13,0))*13),13)))),0)+1),glyphPosition,0)),\"Manik\")","v":"Chuen"},{"$f":"(IF(((((ROUNDDOWN(M28-tzolkinStartDate,0)+1)/13)-ROUNDDOWN((ROUNDDOWN(M28-tzolkinStartDate,0)+1)/13,0))*13)>0,((((ROUNDDOWN(M28-tzolkinStartDate,0)+1)/13)-ROUNDDOWN((ROUNDDOWN(M28-tzolkinStartDate,0)+1)/13,0))*13),13))","v":5.9999999999999787},{"$f":"INDEX(tzolkinGlyphs,MATCH(ROUND((((((M28-tzolkinStartDate)/20)-(ROUNDDOWN((M28-tzolkinStartDate)/20,0)))*20)+1),0),glyphPosition,0))","v":"Cib"},null,{"$f":"INDEX(schedule!$C:$C,MATCH(1,($M28=schedule!$A:$A)*(R$2=schedule!$B:$B),0))","v":{"$error":"#N/A"}},{"$f":"INDEX(schedule!$C:$C,MATCH(1,($M28=schedule!$A:$A)*(S$2=schedule!$B:$B),0))","v":"Schedule appointments and dates here."},{"$f":"INDEX(schedule!$C:$C,MATCH(1,($M28=schedule!$A:$A)*(T$2=schedule!$B:$B),0))","v":{"$error":"#N/A"}}," "]
[null,null,null,null,null,null,null,null,null,null,null,null,"2020-09-27",{"$f":"IFERROR(INDEX(tzolkinGlyphs,MATCH((ROUND(IF(((ROUND(1+(20*(((M29-tzolkinStartDate)/20)-(ROUNDDOWN((M29-tzolkinStartDate)/20,0)))),0))-(IF(((((ROUNDDOWN(M29-tzolkinStartDate,0)+1)/13)-ROUNDDOWN((ROUNDDOWN(M29-tzolkinStartDate,0)+1)/13,0))*13)>0,((((ROUNDDOWN(M29-tzolkinStartDate,0)+1)/13)-ROUNDDOWN((ROUNDDOWN(M29-tzolkinStartDate,0)+1)/13,0))*13),13)))<0,20+((ROUND(1+(20*(((M29-tzolkinStartDate)/20)-(ROUNDDOWN((M29-tzolkinStartDate)/20,0)))),0))-(IF(((((ROUNDDOWN(M29-tzolkinStartDate,0)+1)/13)-ROUNDDOWN((ROUNDDOWN(M29-tzolkinStartDate,0)+1)/13,0))*13)>0,((((ROUNDDOWN(M29-tzolkinStartDate,0)+1)/13)-ROUNDDOWN((ROUNDDOWN(M29-tzolkinStartDate,0)+1)/13,0))*13),13))),((ROUND(1+(20*(((M29-tzolkinStartDate)/20)-(ROUNDDOWN((M29-tzolkinStartDate)/20,0)))),0))-(IF(((((ROUNDDOWN(M29-tzolkinStartDate,0)+1)/13)-ROUNDDOWN((ROUNDDOWN(M29-tzolkinStartDate,0)+1)/13,0))*13)>0,((((ROUNDDOWN(M29-tzolkinStartDate,0)+1)/13)-ROUNDDOWN((ROUNDDOWN(M29-tzolkinStartDate,0)+1)/13,0))*13),13)))),0)+1),glyphPosition,0)),\"Manik\")","v":"Chuen"},{"$f":"(IF(((((ROUNDDOWN(M29-tzolkinStartDate,0)+1)/13)-ROUNDDOWN((ROUNDDOWN(M29-tzolkinStartDate,0)+1)/13,0))*13)>0,((((ROUNDDOWN(M29-tzolkinStartDate,0)+1)/13)-ROUNDDOWN((ROUNDDOWN(M29-tzolkinStartDate,0)+1)/13,0))*13),13))","v":7.0000000000000213},{"$f":"INDEX(tzolkinGlyphs,MATCH(ROUND((((((M29-tzolkinStartDate)/20)-(ROUNDDOWN((M29-tzolkinStartDate)/20,0)))*20)+1),0),glyphPosition,0))","v":"Caban"},null,{"$f":"INDEX(schedule!$C:$C,MATCH(1,($M29=schedule!$A:$A)*(R$2=schedule!$B:$B),0))","v":{"$error":"#N/A"}},{"$f":"INDEX(schedule!$C:$C,MATCH(1,($M29=schedule!$A:$A)*(S$2=schedule!$B:$B),0))","v":{"$error":"#N/A"}},{"$f":"INDEX(schedule!$C:$C,MATCH(1,($M29=schedule!$A:$A)*(T$2=schedule!$B:$B),0))","v":{"$error":"#N/A"}}," "]
[null,null,null,null,null,null,null,null,null,null,null,null,"2020-09-28",{"$f":"IFERROR(INDEX(tzolkinGlyphs,MATCH((ROUND(IF(((ROUND(1+(20*(((M30-tzolkinStartDate)/20)-(ROUNDDOWN((M30-tzolkinStartDate)/20,0)))),0))-(IF(((((ROUNDDOWN(M30-tzolkinStartDate,0)+1)/13)-ROUNDDOWN((ROUNDDOWN(M30-tzolkinStartDate,0)+1)/13,0))*13)>0,((((ROUNDDOWN(M30-tzolkinStartDate,0)+1)/13)-ROUNDDOWN((ROUNDDOWN(M30-tzolkinStartDate,0)+1)/13,0))*13),13)))<0,20+((ROUND(1+(20*(((M30-tzolkinStartDate)/20)-(ROUNDDOWN((M30-tzolkinStartDate)/20,0)))),0))-(IF(((((ROUNDDOWN(M30-tzolkinStartDate,0)+1)/13)-ROUNDDOWN((ROUNDDOWN(M30-tzolkinStartDate,0)+1)/13,0))*13)>0,((((ROUNDDOWN(M30-tzolkinStartDate,0)+1)/13)-ROUNDDOWN((ROUNDDOWN(M30-tzolkinStartDate,0)+1)/13,0))*13),13))),((ROUND(1+(20*(((M30-tzolkinStartDate)/20)-(ROUNDDOWN((M30-tzolkinStartDate)/20,0)))),0))-(IF(((((ROUNDDOWN(M30-tzolkinStartDate,0)+1)/13)-ROUNDDOWN((ROUNDDOWN(M30-tzolkinStartDate,0)+1)/13,0))*13)>0,((((ROUNDDOWN(M30-tzolkinStartDate,0)+1)/13)-ROUNDDOWN((ROUNDDOWN(M30-tzolkinStartDate,0)+1)/13,0))*13),13)))),0)+1),glyphPosition,0)),\"Manik\")","v":"Chuen"},{"$f":"(IF(((((ROUNDDOWN(M30-tzolkinStartDate,0)+1)/13)-ROUNDDOWN((ROUNDDOWN(M30-tzolkinStartDate,0)+1)/13,0))*13)>0,((((ROUNDDOWN(M30-tzolkinStartDate,0)+1)/13)-ROUNDDOWN((ROUNDDOWN(M30-tzolkinStartDate,0)+1)/13,0))*13),13))","v":7.9999999999999716},{"$f":"INDEX(tzolkinGlyphs,MATCH(ROUND((((((M30-tzolkinStartDate)/20)-(ROUNDDOWN((M30-tzolkinStartDate)/20,0)))*20)+1),0),glyphPosition,0))","v":"Etznab"},null,{"$f":"INDEX(schedule!$C:$C,MATCH(1,($M30=schedule!$A:$A)*(R$2=schedule!$B:$B),0))","v":{"$error":"#N/A"}},{"$f":"INDEX(schedule!$C:$C,MATCH(1,($M30=schedule!$A:$A)*(S$2=schedule!$B:$B),0))","v":{"$error":"#N/A"}},{"$f":"INDEX(schedule!$C:$C,MATCH(1,($M30=schedule!$A:$A)*(T$2=schedule!$B:$B),0))","v":{"$error":"#N/A"}}," "]
[null,null,null,null,null,null,null,null,null,null,null,null,{"$f":"M30+1","v":"2020-09-29"},{"$f":"IFERROR(INDEX(tzolkinGlyphs,MATCH((ROUND(IF(((ROUND(1+(20*(((M31-tzolkinStartDate)/20)-(ROUNDDOWN((M31-tzolkinStartDate)/20,0)))),0))-(IF(((((ROUNDDOWN(M31-tzolkinStartDate,0)+1)/13)-ROUNDDOWN((ROUNDDOWN(M31-tzolkinStartDate,0)+1)/13,0))*13)>0,((((ROUNDDOWN(M31-tzolkinStartDate,0)+1)/13)-ROUNDDOWN((ROUNDDOWN(M31-tzolkinStartDate,0)+1)/13,0))*13),13)))<0,20+((ROUND(1+(20*(((M31-tzolkinStartDate)/20)-(ROUNDDOWN((M31-tzolkinStartDate)/20,0)))),0))-(IF(((((ROUNDDOWN(M31-tzolkinStartDate,0)+1)/13)-ROUNDDOWN((ROUNDDOWN(M31-tzolkinStartDate,0)+1)/13,0))*13)>0,((((ROUNDDOWN(M31-tzolkinStartDate,0)+1)/13)-ROUNDDOWN((ROUNDDOWN(M31-tzolkinStartDate,0)+1)/13,0))*13),13))),((ROUND(1+(20*(((M31-tzolkinStartDate)/20)-(ROUNDDOWN((M31-tzolkinStartDate)/20,0)))),0))-(IF(((((ROUNDDOWN(M31-tzolkinStartDate,0)+1)/13)-ROUNDDOWN((ROUNDDOWN(M31-tzolkinStartDate,0)+1)/13,0))*13)>0,((((ROUNDDOWN(M31-tzolkinStartDate,0)+1)/13)-ROUNDDOWN((ROUNDDOWN(M31-tzolkinStartDate,0)+1)/13,0))*13),13)))),0)+1),glyphPosition,0)),\"Manik\")","v":"Chuen"},{"$f":"(IF(((((ROUNDDOWN(M31-tzolkinStartDate,0)+1)/13)-ROUNDDOWN((ROUNDDOWN(M31-tzolkinStartDate,0)+1)/13,0))*13)>0,((((ROUNDDOWN(M31-tzolkinStartDate,0)+1)/13)-ROUNDDOWN((ROUNDDOWN(M31-tzolkinStartDate,0)+1)/13,0))*13),13))","v":9.0000000000000142},{"$f":"INDEX(tzolkinGlyphs,MATCH(ROUND((((((M31-tzolkinStartDate)/20)-(ROUNDDOWN((M31-tzolkinStartDate)/20,0)))*20)+1),0),glyphPosition,0))","v":"Cauac"},null,{"$f":"INDEX(schedule!$C:$C,MATCH(1,($M31=schedule!$A:$A)*(R$2=schedule!$B:$B),0))","v":{"$error":"#N/A"}},{"$f":"INDEX(schedule!$C:$C,MATCH(1,($M31=schedule!$A:$A)*(S$2=schedule!$B:$B),0))","v":{"$error":"#N/A"}},{"$f":"INDEX(schedule!$C:$C,MATCH(1,($M31=schedule!$A:$A)*(T$2=schedule!$B:$B),0))","v":{"$error":"#N/A"}}," "]
[null,null,null,null,null,null,null,null,null,null,null,null,{"$f":"M31+1","v":"2020-09-30"},{"$f":"IFERROR(INDEX(tzolkinGlyphs,MATCH((ROUND(IF(((ROUND(1+(20*(((M32-tzolkinStartDate)/20)-(ROUNDDOWN((M32-tzolkinStartDate)/20,0)))),0))-(IF(((((ROUNDDOWN(M32-tzolkinStartDate,0)+1)/13)-ROUNDDOWN((ROUNDDOWN(M32-tzolkinStartDate,0)+1)/13,0))*13)>0,((((ROUNDDOWN(M32-tzolkinStartDate,0)+1)/13)-ROUNDDOWN((ROUNDDOWN(M32-tzolkinStartDate,0)+1)/13,0))*13),13)))<0,20+((ROUND(1+(20*(((M32-tzolkinStartDate)/20)-(ROUNDDOWN((M32-tzolkinStartDate)/20,0)))),0))-(IF(((((ROUNDDOWN(M32-tzolkinStartDate,0)+1)/13)-ROUNDDOWN((ROUNDDOWN(M32-tzolkinStartDate,0)+1)/13,0))*13)>0,((((ROUNDDOWN(M32-tzolkinStartDate,0)+1)/13)-ROUNDDOWN((ROUNDDOWN(M32-tzolkinStartDate,0)+1)/13,0))*13),13))),((ROUND(1+(20*(((M32-tzolkinStartDate)/20)-(ROUNDDOWN((M32-tzolkinStartDate)/20,0)))),0))-(IF(((((ROUNDDOWN(M32-tzolkinStartDate,0)+1)/13)-ROUNDDOWN((ROUNDDOWN(M32-tzolkinStartDate,0)+1)/13,0))*13)>0,((((ROUNDDOWN(M32-tzolkinStartDate,0)+1)/13)-ROUNDDOWN((ROUNDDOWN(M32-tzolkinStartDate,0)+1)/13,0))*13),13)))),0)+1),glyphPosition,0)),\"Manik\")","v":"Chuen"},{"$f":"(IF(((((ROUNDDOWN(M32-tzolkinStartDate,0)+1)/13)-ROUNDDOWN((ROUNDDOWN(M32-tzolkinStartDate,0)+1)/13,0))*13)>0,((((ROUNDDOWN(M32-tzolkinStartDate,0)+1)/13)-ROUNDDOWN((ROUNDDOWN(M32-tzolkinStartDate,0)+1)/13,0))*13),13))","v":9.9999999999999645},{"$f":"INDEX(tzolkinGlyphs,MATCH(ROUND((((((M32-tzolkinStartDate)/20)-(ROUNDDOWN((M32-tzolkinStartDate)/20,0)))*20)+1),0),glyphPosition,0))","v":"Ahau"},null,{"$f":"INDEX(schedule!$C:$C,MATCH(1,($M32=schedule!$A:$A)*(R$2=schedule!$B:$B),0))","v":{"$error":"#N/A"}},{"$f":"INDEX(schedule!$C:$C,MATCH(1,($M32=schedule!$A:$A)*(S$2=schedule!$B:$B),0))","v":{"$error":"#N/A"}},{"$f":"INDEX(schedule!$C:$C,MATCH(1,($M32=schedule!$A:$A)*(T$2=schedule!$B:$B),0))","v":{"$error":"#N/A"}}," "]
[null,null,null,null,null,null,null,null,null,null,null,null,{"$f":"M32+1","v":"2020-10-01"},{"$f":"IFERROR(INDEX(tzolkinGlyphs,MATCH((ROUND(IF(((ROUND(1+(20*(((M33-tzolkinStartDate)/20)-(ROUNDDOWN((M33-tzolkinStartDate)/20,0)))),0))-(IF(((((ROUNDDOWN(M33-tzolkinStartDate,0)+1)/13)-ROUNDDOWN((ROUNDDOWN(M33-tzolkinStartDate,0)+1)/13,0))*13)>0,((((ROUNDDOWN(M33-tzolkinStartDate,0)+1)/13)-ROUNDDOWN((ROUNDDOWN(M33-tzolkinStartDate,0)+1)/13,0))*13),13)))<0,20+((ROUND(1+(20*(((M33-tzolkinStartDate)/20)-(ROUNDDOWN((M33-tzolkinStartDate)/20,0)))),0))-(IF(((((ROUNDDOWN(M33-tzolkinStartDate,0)+1)/13)-ROUNDDOWN((ROUNDDOWN(M33-tzolkinStartDate,0)+1)/13,0))*13)>0,((((ROUNDDOWN(M33-tzolkinStartDate,0)+1)/13)-ROUNDDOWN((ROUNDDOWN(M33-tzolkinStartDate,0)+1)/13,0))*13),13))),((ROUND(1+(20*(((M33-tzolkinStartDate)/20)-(ROUNDDOWN((M33-tzolkinStartDate)/20,0)))),0))-(IF(((((ROUNDDOWN(M33-tzolkinStartDate,0)+1)/13)-ROUNDDOWN((ROUNDDOWN(M33-tzolkinStartDate,0)+1)/13,0))*13)>0,((((ROUNDDOWN(M33-tzolkinStartDate,0)+1)/13)-ROUNDDOWN((ROUNDDOWN(M33-tzolkinStartDate,0)+1)/13,0))*13),13)))),0)+1),glyphPosition,0)),\"Manik\")","v":"Chuen"},{"$f":"(IF(((((ROUNDDOWN(M33-tzolkinStartDate,0)+1)/13)-ROUNDDOWN((ROUNDDOWN(M33-tzolkinStartDate,0)+1)/13,0))*13)>0,((((ROUNDDOWN(M33-tzolkinStartDate,0)+1)/13)-ROUNDDOWN((ROUNDDOWN(M33-tzolkinStartDate,0)+1)/13,0))*13),13))","v":11.000000000000007},{"$f":"INDEX(tzolkinGlyphs,MATCH(ROUND((((((M33-tzolkinStartDate)/20)-(ROUNDDOWN((M33-tzolkinStartDate)/20,0)))*20)+1),0),glyphPosition,0))","v":"Imix"},null,{"$f":"INDEX(schedule!$C:$C,MATCH(1,($M33=schedule!$A:$A)*(R$2=schedule!$B:$B),0))","v":{"$error":"#N/A"}},{"$f":"INDEX(schedule!$C:$C,MATCH(1,($M33=schedule!$A:$A)*(S$2=schedule!$B:$B),0))","v":{"$error":"#N/A"}},{"$f":"INDEX(schedule!$C:$C,MATCH(1,($M33=schedule!$A:$A)*(T$2=schedule!$B:$B),0))","v":{"$error":"#N/A"}}," "]
[null,null,null,null,null,null,null,null,null,null,null,null,{"$f":"M33+1","v":"2020-10-02"},{"$f":"IFERROR(INDEX(tzolkinGlyphs,MATCH((ROUND(IF(((ROUND(1+(20*(((M34-tzolkinStartDate)/20)-(ROUNDDOWN((M34-tzolkinStartDate)/20,0)))),0))-(IF(((((ROUNDDOWN(M34-tzolkinStartDate,0)+1)/13)-ROUNDDOWN((ROUNDDOWN(M34-tzolkinStartDate,0)+1)/13,0))*13)>0,((((ROUNDDOWN(M34-tzolkinStartDate,0)+1)/13)-ROUNDDOWN((ROUNDDOWN(M34-tzolkinStartDate,0)+1)/13,0))*13),13)))<0,20+((ROUND(1+(20*(((M34-tzolkinStartDate)/20)-(ROUNDDOWN((M34-tzolkinStartDate)/20,0)))),0))-(IF(((((ROUNDDOWN(M34-tzolkinStartDate,0)+1)/13)-ROUNDDOWN((ROUNDDOWN(M34-tzolkinStartDate,0)+1)/13,0))*13)>0,((((ROUNDDOWN(M34-tzolkinStartDate,0)+1)/13)-ROUNDDOWN((ROUNDDOWN(M34-tzolkinStartDate,0)+1)/13,0))*13),13))),((ROUND(1+(20*(((M34-tzolkinStartDate)/20)-(ROUNDDOWN((M34-tzolkinStartDate)/20,0)))),0))-(IF(((((ROUNDDOWN(M34-tzolkinStartDate,0)+1)/13)-ROUNDDOWN((ROUNDDOWN(M34-tzolkinStartDate,0)+1)/13,0))*13)>0,((((ROUNDDOWN(M34-tzolkinStartDate,0)+1)/13)-ROUNDDOWN((ROUNDDOWN(M34-tzolkinStartDate,0)+1)/13,0))*13),13)))),0)+1),glyphPosition,0)),\"Manik\")","v":"Chuen"},{"$f":"(IF(((((ROUNDDOWN(M34-tzolkinStartDate,0)+1)/13)-ROUNDDOWN((ROUNDDOWN(M34-tzolkinStartDate,0)+1)/13,0))*13)>0,((((ROUNDDOWN(M34-tzolkinStartDate,0)+1)/13)-ROUNDDOWN((ROUNDDOWN(M34-tzolkinStartDate,0)+1)/13,0))*13),13))","v":11.999999999999957},{"$f":"INDEX(tzolkinGlyphs,MATCH(ROUND((((((M34-tzolkinStartDate)/20)-(ROUNDDOWN((M34-tzolkinStartDate)/20,0)))*20)+1),0),glyphPosition,0))","v":"Ik"},null,{"$f":"INDEX(schedule!$C:$C,MATCH(1,($M34=schedule!$A:$A)*(R$2=schedule!$B:$B),0))","v":{"$error":"#N/A"}},{"$f":"INDEX(schedule!$C:$C,MATCH(1,($M34=schedule!$A:$A)*(S$2=schedule!$B:$B),0))","v":{"$error":"#N/A"}},{"$f":"INDEX(schedule!$C:$C,MATCH(1,($M34=schedule!$A:$A)*(T$2=schedule!$B:$B),0))","v":{"$error":"#N/A"}}," "]

{"sheet":"rules","index":1,"n_rows":35,"n_cols":28,"rows_kept":35,"cut":false,"hidden":true,"merged":[]}
["rules","punchOutData"]
["date",{"$f":"NOW()","v":"2020-09-19T21:10:45.820"},null,null,null,null,"tzolkinHelper"]
[{"$f":"Control!B2","v":"io"},"in",null,null,null,null,"2019-01-06",15,"Imix",1]
[{"$f":"Control!B3","v":"name"},"Caleb Roy",null,null,null,null,null,8,"Ix",2,null,null,null,null,null,null,null,null,null,null,null,null,null,null,null,1,"manik",3]
[{"$f":"Control!B4","v":"focus"},"Personal",null,null,null,null,null,1,"Manik",3,null,null,null,null,null,null,null,null,null,null,null,null,null,null,null,2,"lamat",20]
["notes","Study"," ",null,null,null,null,14,"Ahau",4,null,null,null,null,null,null,null,null,null,null,null,null,null,null,null,3,"muluc",17]
[null,null,null,null,null,null,null,7,"Ben",5,null,null,null,null,null,null,null,null,null,null,null,null,null,null,null,4,"oc",14]
[null,"Today was a good day. Fill out your activity here and click the Punch button in the top left. These notes are recorded to the hours sheet."," ",null,null,null,null,20,"Cimi",6,null,null,null,null,null,null,null,null,null,null,null,null,null,null,null,5,"chuen",11]
[null,null,null,null,null,null,null,13,"Cauac",7,null,null,null,null,null,null,null,null,null,null,null,null,null,null,null,6,"eb",8]
[null,null,null,null,null,null,null,6,"Eb",8,null,null,null,null,null,null,null,null,null,null,null,null,null,null,null,7,"ben",5]
[null,null,null,null,null,null,null,19,"Chicchan",9,null,null,null,null,null,null,null,null,null,null,null,null,null,null,null,8,"ix",2]
[null,null,null,null,null,null,null,12,"Etznab",10,null,null,null,null,null,null,null,null,null,null,null,null,null,null,null,9,"men",19]
[null,null,null,null,null,null,null,5,"Chuen",11,null,null,null,null,null,null,null,null,null,null,null,null,null,null,null,10,"cib",16]
[{"$f":"Control!B13","v":0},null,null,null,null,null,null,18,"Kan",12,null,null,null,null,null,null,null,null,null,null,null,null,null,null,null,11,"caban",13]
[{"$f":"Control!B14","v":0},null,null,null,null,null,null,11,"Caban",13,null,null,null,null,null,null,null,null,null,null,null,null,null,null,null,12,"etznab",10]
[{"$f":"Control!B15","v":0},null,null,null,null,null,null,4,"Oc",14,null,null,null,null,null,null,null,null,null,null,null,null,null,null,null,13,"cauac",7]
[{"$f":"Control!B16","v":0},null,null,null,null,null,null,17,"Akbal",15,null,null,null,null,null,null,null,null,null,null,null,null,null,null,null,14,"ahau",4]
[{"$f":"Control!B17","v":0},null,null,null,null,null,null,10,"Cib",16,null,null,null,null,null,null,null,null,null,null,null,null,null,null,null,15,"imix",1]
[{"$f":"Control!B18","v":0},null,null,null,null,null,null,3,"Muluc",17,null,null,null,null,null,null,null,null,null,null,null,null,null,null,null,16,"ik",18]
[{"$f":"Control!B19","v":"Data"},null,null,null,null,null,null,16,"Ik",18,null,null,null,null,null,null,null,null,null,null,null,null,null,null,null,17,"akbal",15]
[{"$f":"Control!B20","v":"Data 2"},155,null,null,null,null,null,9,"Men",19,null,null,null,null,null,null,null,null,null,null,null,null,null,null,null,18,"kan",12]
[{"$f":"Control!B21","v":"(change me)"},null,null,null,null,null,null,2,"Lamat",20,null,null,null,null,null,null,null,null,null,null,null,null,null,null,null,19,"chicchan",9]
[{"$f":"Control!B22","v":0},null,null,null,null,null,null,null,null,null,null,null,null,null,null,null,null,null,null,null,null,null,null,null,null,20,"cimi",6]
[{"$f":"Control!B23","v":0}]
[{"$f":"Control!B24","v":"Tzolkin"}]
[{"$f":"Control!B25","v":"Wave"},"Etznab"]
[{"$f":"Control!B26","v":"Tone"},12]
[{"$f":"Control!B27","v":"Glyph"},"Muluc"]
[{"$f":"Control!B28","v":0}]
[{"$f":"Control!B29","v":0}]
[{"$f":"Control!B30","v":0}]
[{"$f":"Control!B31","v":0}]
[{"$f":"Control!B32","v":0}]
[{"$f":"Control!B33","v":0}]
[{"$f":"Control!B34","v":0}]

{"sheet":"|","index":2,"n_rows":0,"n_cols":0,"rows_kept":0,"cut":false,"hidden":false,"merged":[]}

{"sheet":"schedule","index":3,"n_rows":4,"n_cols":3,"rows_kept":4,"cut":false,"hidden":false,"merged":[]}
["Schedule"]
["date","focus","task"]
[{"$f":"TODAY()+5","v":"2020-09-24"},"Personal","An example personal task"]
[{"$f":"TODAY()+7","v":"2020-09-26"},"Professional","Schedule appointments and dates here."]

{"sheet":"hours","index":4,"n_rows":1,"n_cols":100,"rows_kept":1,"cut":false,"hidden":false,"merged":[]}
[{"$f":"TRANSPOSE(Control!B1:B100)","v":"Date"},"io","name","focus","task",0,"notes",0,0,0,0,0,0,0,0,0,0,0,"Data","Data 2","(change me)",0,0,"Tzolkin","Wave","Tone","Glyph",0,0,0,0,0,0,0,0,0,0,0,0,0,0,0,0,0,0,0,0,0,0,0,0,0,0,0,0,0,0,0,0,0,0,0,0,0,0,0,0,0,0,0,0,0,0,0,0,0,0,0,0,0,0,0,0,0,0,0,0,0,0,0,0,0,0,0,0,0,0,0,0,0]